NUMERO_MANDATO;RIGA_MANDATO;QUIET;IMPORTO_RIGA;IMPORTO_MANDATO;BENEFICIARIO;CIG;TITOLO_PAGAMENTO;DATA_MANDATO;CAPITOLO;ARTICOLO;NUMERO_IMPEGNO;TITOLO;DESCR_TITOLO;LIVELLO_II;DESCR_LIVELLO_II;LIVELLO_III;DESCR_LIVELLO_III;LIVELLO_IV;DESCR_LIVELLO_IV;LIVELLO_V;DESCR_LIVELLO_V;DATA_PAG_EFF;
1;1;0;"18.574,00";"18.574,00";O.D.V. PROTEZIONE CIVILE DI SAN ZENONE DEGLI EZZELINI; ;"LIQUIDAZIONE DEL CONTRIBUTO PER SERVIZIO RESO ALLA POPOLAZIONE PER CONTRASTO COVID-19, TRASFERIMENTO SEDE MUNICIPALE E ALTRI SERVIZI VARI ALLORGANIZZAZIONE DI VOLONTARIATO (O.D.V.) PROTEZIONE CIVILE DI SAN ZENONE DEGLI EZZELINI - ANNO 2020.";04-01-2021;382;1;408;1;Spese correnti;4;Trasferimenti correnti;1;Trasferimenti correnti a Amministrazioni Pubbliche;4;Trasferimenti correnti a organismi interni e/o unità locali della amministrazione;1;Trasferimenti correnti a organismi interni e/o unità locali della amministrazione;04-01-2021;
2;1;0;"18.914,92";"18.914,92";U.L.S.S.   N. 2 MARCA TREVIGIANA; ;"TUTELA SOCIALE MINORILE, ONERI PER LE FUNZIONI DELEGATE - IMPEGNO DI SPESA PER LANNO 2020 E LIQUIDAZIONE PRIMO E SECONDO QUADRIMESTRE A FAVORE DELLAZIENDA ULSS N. 2 MARCA TREVIGIANA (EX ULSS N. 8).";04-01-2021;580;0;405;1;Spese correnti;4;Trasferimenti correnti;1;Trasferimenti correnti a Amministrazioni Pubbliche;2;Trasferimenti correnti a Amministrazioni Locali;20;Trasferimenti correnti a Aziende sanitarie locali  a titolo di finanziamento del servizio sanitario nazionale;04-01-2021;
3;1;0;"67,80";"67,80";SCUOLA DELL'INFANZIA PARITARIA S. GIUSEPPE; ;IMPEGNO E LIQUIDAZIONE AD ASSOCIAZIONI PER FINALITA SOCIALI IN LUOGO DI GETTONI DI PRESENZA AI CONSIGLIERI COMUNALI PER LE SEDUTE ANNO 2020.;07-01-2021;574;0;478;1;Spese correnti;4;Trasferimenti correnti;1;Trasferimenti correnti a Amministrazioni Pubbliche;4;Trasferimenti correnti a organismi interni e/o unità locali della amministrazione;1;Trasferimenti correnti a organismi interni e/o unità locali della amministrazione;07-01-2021;
4;1;0;"7.462,00";"7.462,00";ISTITUTO COMPRENSIVO STATALE; ;IMPEGNO DI SPESA E LIQUIDAZIONE ALLISTITUTO COMPRENSIVO STATALE DI SAN ZENONE DEGLI EZZELINI QUOTA PARTE DEL CONTRIBUTO PER LO SVILUPPO DELLA FORMAZIONE E DELLISTRUZIONE SCOLASTICA A.S. 2020/2021.;08-01-2021;254;1;457;1;Spese correnti;4;Trasferimenti correnti;1;Trasferimenti correnti a Amministrazioni Pubbliche;4;Trasferimenti correnti a organismi interni e/o unità locali della amministrazione;1;Trasferimenti correnti a organismi interni e/o unità locali della amministrazione;08-01-2021;
6;1;0;"3.174,84";"3.174,84";ISTITUTO COMPRENSIVO STATALE; ;IMPEGNO DI SPESA E LIQUIDAZIONE ALLISTITUTO COMPRENSIVO STATALE DI SAN ZENONE DEGLI EZZELINI QUOTA PARTE 2020 PER IL SERVIZIO "FUNZIONI MISTE" DEL PERSONALE ATA - ANNO SCOLASTICO 2020/2021.;08-01-2021;254;1;458;1;Spese correnti;4;Trasferimenti correnti;1;Trasferimenti correnti a Amministrazioni Pubbliche;4;Trasferimenti correnti a organismi interni e/o unità locali della amministrazione;1;Trasferimenti correnti a organismi interni e/o unità locali della amministrazione;08-01-2021;
10;1;0;"1.020,00";"1.020,00";COMITATO PROVINCIALE PER L'UNICEF DI TREVISO; ;"IMPEGNO DI SPESA A FAVORE DEL COMITATO PROVINCIALE UNICEF - SEZIONE DI TREVISO, PER ADESIONE ALLINIZIATIVA ""PER OGNI BAMBINO NATO, UN BAMBINO SALVATO"".";08-01-2021;500;0;461;1;Spese correnti;4;Trasferimenti correnti;1;Trasferimenti correnti a Amministrazioni Pubbliche;4;Trasferimenti correnti a organismi interni e/o unità locali della amministrazione;1;Trasferimenti correnti a organismi interni e/o unità locali della amministrazione;08-01-2021;
11;1;0;"750,00";"750,00";COMITATO PROVINCIALE PESCA SPORTIVA;ZE22F851CD;INTERVENTO DI CONTENIMENTO DELLA FAUNA ITTICA PRESSO LOASI DI SAN DANIELE ALLA F.I.P.S.A.S. FEDERAZIONE ITALIANA PESCA SPORTIVA E ATTIVITA SUBACQUEA COMITATO TERRITORIALE DI TREVISO - CIG: ZEA2F79D97.;08-01-2021;333;1;469;1;Spese correnti;4;Trasferimenti correnti;1;Trasferimenti correnti a Amministrazioni Pubbliche;4;Trasferimenti correnti a organismi interni e/o unità locali della amministrazione;1;Trasferimenti correnti a organismi interni e/o unità locali della amministrazione;08-01-2021;
12;1;0;"211,53";"211,53";MAXI DI SRL; ;SALDO Fatt.n. D38520999000134  del 04/06/2020 ACQUISTO BENI PER EMERGENZA ALIMENTARE;12-01-2021;563;0;126;1;Spese correnti;3;Acquisto di beni e servizi;1;Acquisto di beni;2;Altri beni di consumo;11;Generi alimentari;12-01-2021;
14;1;0;"200,00";"200,00";OMESSO NOMINATIVO NEL RISPETTO DELLA NORMATIVA SULLA PROTEZIONE DATI PERSONALI; ;CONTRIBUTO ECONOMICO STRAORDINARIO PER GARANTIRE IL RISCALDAMENTO AD UN NUCLEO IN DISAGIO SOCIO-ECONOMICO.;13-01-2021;576;0;430;1;Spese correnti;4;Trasferimenti correnti;2;Trasferimenti correnti a Famiglie;2;Interventi assistenziali;999;Altri assegni e sussidi assistenziali;13-01-2021;
15;1;0;"174,17";"10.767,12";PLT PUREGREEN;7134285639;SALDO Fatt.n. 20200040002861  del 11/08/2020 FORNITURA ENERGIA ELETTRICA - LUGLIO 2020;13-01-2021;600;0;216;1;Spese correnti;3;Acquisto di beni e servizi;2;Acquisto di servizi;5;Utenze e canoni;4;Energia elettrica;13-01-2021;
15;2;0;"246,76";"10.767,12";PLT PUREGREEN;7134285639;SALDO Fatt.n. 20200040002857  del 11/08/2020 FORNITURA ENERGIA ELETTRICA - LUGLIO 2020;13-01-2021;600;0;216;1;Spese correnti;3;Acquisto di beni e servizi;2;Acquisto di servizi;5;Utenze e canoni;4;Energia elettrica;13-01-2021;
15;3;0;"1.036,70";"10.767,12";PLT PUREGREEN;7134285639;SALDO Fatt.n. 20200040002859  del 11/08/2020 FORNITURA ENERGIA ELETTRICA - LUGLIO 2020;13-01-2021;600;0;216;1;Spese correnti;3;Acquisto di beni e servizi;2;Acquisto di servizi;5;Utenze e canoni;4;Energia elettrica;13-01-2021;
15;4;0;"9.309,49";"10.767,12";PLT PUREGREEN;7134285639;SALDO Fatt.n. 20200040002853  del 11/08/2020 FORNITURA ENERGIA ELETTRICA - LUGLIO 2020;13-01-2021;600;0;216;1;Spese correnti;3;Acquisto di beni e servizi;2;Acquisto di servizi;5;Utenze e canoni;4;Energia elettrica;13-01-2021;
16;1;0;"40,00";"40,00";NICOPNEUS DI NICOLINI MICHELE;Z0F2F724CB;SALDO Fatt.n. 223/SZPO  del 30/11/2020 RIPARAZIONE TRATTORINO TAGLIAERBA;13-01-2021;589;1;383;1;Spese correnti;3;Acquisto di beni e servizi;2;Acquisto di servizi;9;Manutenzione ordinaria e riparazioni;1;"Manutenzione ordinaria e riparazioni di mezzi di trasporto ad uso civile, di sicurezza e ordine pubblico";13-01-2021;
17;1;0;"114,90";"114,90";POSTE ITALIANE SPA - PROVENTI POLO LOGISTICO;Z0B2DA2D69;SALDO Fatt.n. 1020395903  del 18/12/2020 PRODOTTI POSTALI - DICEMBRE 2020;15-01-2021;26;0;220;1;Spese correnti;3;Acquisto di beni e servizi;2;Acquisto di servizi;16;Servizi amministrativi;2;Spese postali;15-01-2021;
18;1;0;"200,00";"200,00";SONDA COOPERATIVA SOCIALE ONLUS; ;SALDO Fatt.n. 391/PA/2020  del 22/12/2020 PRESTAZIONI SOCIALI - DICEMBRE 2020;15-01-2021;576;0;84;1;Spese correnti;4;Trasferimenti correnti;2;Trasferimenti correnti a Famiglie;2;Interventi assistenziali;999;Altri assegni e sussidi assistenziali;15-01-2021;
19;1;0;"160,43";"160,43";FERRONATO S.R.L.;Z7C26AD935;SALDO Fatt.n. P6  del 29/12/2020 FORNITURA MATERIALE;15-01-2021;71;2;276;1;Spese correnti;3;Acquisto di beni e servizi;1;Acquisto di beni;2;Altri beni di consumo;999;Altri beni e materiali di consumo n.a.c.;15-01-2021;
20;1;0;"137,82";"137,82";LA FONTESE DI GIANNI BROLESE & C. S.A.S.;Z782ED78FA;SALDO Fatt.n. 188/F  del 24/12/2020 FORNITURA MATERIALI;15-01-2021;21;0;344;1;Spese correnti;3;Acquisto di beni e servizi;1;Acquisto di beni;2;Altri beni di consumo;1;"Carta, cancelleria e stampati";15-01-2021;
21;1;0;"756,40";"756,40";CENTRO STUDI AMMINISTRATIVI DELLA M.T.;Z9F2FFE3C7;SALDO Fatt.n. 837/2020  del 28/12/2020 PRATICHE DI PENSIONE;15-01-2021;55;0;439;1;Spese correnti;3;Acquisto di beni e servizi;2;Acquisto di servizi;17;Servizi finanziari;999;Spese per servizi finanziari n.a.c.;15-01-2021;
22;1;0;"6.386,23";"6.386,23";CASA DI RIPOSO 'AITA'; ;SALDO Fatt.n. 609/C  del 21/12/2020 FORNITURA PASTI MENSA SCUOLE - NOVEMBRE 2020;15-01-2021;274;1;54;1;Spese correnti;3;Acquisto di beni e servizi;2;Acquisto di servizi;15;Contratti di servizio pubblico;6;Contratti di servizio per le mense scolastiche;15-01-2021;
23;1;0;"1.620,00";"1.620,00";CASA DI RIPOSO 'AITA'; ;SALDO Fatt.n. 445/B  del 18/12/2020 PRESTAZIONI SOCIALI - L.V. - DICEMBRE 2020;15-01-2021;560;0;55;1;Spese correnti;3;Acquisto di beni e servizi;2;Acquisto di servizi;15;Contratti di servizio pubblico;8;Contratti di servizio di assistenza sociale residenziale e semiresidenziale;15-01-2021;
24;1;0;"96,60";"96,60";MAXI DI SRL; ;SALDO Fatt.n. D38520999000238  del 22/12/2020 ACQUISTO DI BENI PER EMERGENZA SANITARIA;15-01-2021;563;0;126;1;Spese correnti;3;Acquisto di beni e servizi;1;Acquisto di beni;2;Altri beni di consumo;11;Generi alimentari;15-01-2021;
25;1;0;"33,00";"235,41";MAXI DI SRL; ;SALDO Fatt.n. D38520999000241  del 30/12/2020 ACQUISTO DI BENI PER EMERGENZA SANITARIA;18-01-2021;563;0;126;1;Spese correnti;3;Acquisto di beni e servizi;1;Acquisto di beni;2;Altri beni di consumo;11;Generi alimentari;18-01-2021;
25;2;0;"41,16";"235,41";MAXI DI SRL; ;SALDO Fatt.n. D38520999000237  del 21/12/2020 ACQUISTO DI BENI PER EMERGENZA SANITARIA;18-01-2021;563;0;126;1;Spese correnti;3;Acquisto di beni e servizi;1;Acquisto di beni;2;Altri beni di consumo;11;Generi alimentari;18-01-2021;
25;3;0;"78,23";"235,41";MAXI DI SRL; ;SALDO Fatt.n. D38520999000236  del 21/12/2020 ACQUISTO DI BENI PER EMERGENZA SANITARIA;18-01-2021;563;0;126;1;Spese correnti;3;Acquisto di beni e servizi;1;Acquisto di beni;2;Altri beni di consumo;11;Generi alimentari;18-01-2021;
25;4;0;"83,02";"235,41";MAXI DI SRL; ;SALDO Fatt.n. D38520999000235  del 18/12/2020 ACQUISTO BENI PER EMERGENZA SANITARIA;18-01-2021;563;0;126;1;Spese correnti;3;Acquisto di beni e servizi;1;Acquisto di beni;2;Altri beni di consumo;11;Generi alimentari;18-01-2021;
26;1;0;"111,96";"111,96";OMESSO NOMINATIVO NEL RISPETTO DELLA NORMATIVA SULLA PROTEZIONE DATI PERSONALI; ;FATTURA N. 462/B DEL 21.12.2020 CASA DI RIPOSO AITA - PASTI MESE NOVEMBRE 2020.;18-01-2021;576;0;90;1;Spese correnti;4;Trasferimenti correnti;2;Trasferimenti correnti a Famiglie;2;Interventi assistenziali;999;Altri assegni e sussidi assistenziali;18-01-2021;
27;1;0;"79,93";"79,93";ASCOTRADE S.P.A.;Z342D086E5;SALDO Fatt.n. 1609759  del 18/12/2020 CONSUMU GAS  DAL 16/10/2020 AL 15/12/2020;18-01-2021;71;0;171;1;Spese correnti;3;Acquisto di beni e servizi;2;Acquisto di servizi;5;Utenze e canoni;6;Gas;18-01-2021;
28;1;0;"567,30";"567,30";SICURITALIA IVRI S.P.A.;Z3827208DE;SALDO Fatt.n. 9117015636  del 21/12/2020 SERVIZI DI PRONTO INTERVENTO - DICEMBRE 2020;18-01-2021;235;0;92;1;Spese correnti;3;Acquisto di beni e servizi;2;Acquisto di servizi;5;Utenze e canoni;999;Utenze e canoni per altri servizi n.a.c.;18-01-2021;
29;1;0;"78,90";"78,90";OMESSO NOMINATIVO NEL RISPETTO DELLA NORMATIVA SULLA PROTEZIONE DATI PERSONALI; ;ACC. FATT. N. 463/B DEL 21.12.2020 PASTI A DOMICILIO MESE NOVEMBRE 2020.;18-01-2021;576;0;316;1;Spese correnti;4;Trasferimenti correnti;2;Trasferimenti correnti a Famiglie;2;Interventi assistenziali;999;Altri assegni e sussidi assistenziali;18-01-2021;
30;1;0;"227,68";"227,68";OMESSO NOMINATIVO NEL RISPETTO DELLA NORMATIVA SULLA PROTEZIONE DATI PERSONALI; ;SALDO FATT. N. 463/B DEL 21.12.2020 PASTI A DOMICILIO MESE NOVEMBRE 2020.;18-01-2021;576;0;431;1;Spese correnti;4;Trasferimenti correnti;2;Trasferimenti correnti a Famiglie;2;Interventi assistenziali;999;Altri assegni e sussidi assistenziali;18-01-2021;
32;1;0;"972,50";"972,50";I.P.A.TERRE ASOLO E M. GRAPPA C/O FONDAZIONE LA FORNACE; ;VERSAMENTO SALDO 2019 E ACCONTO 2020 DELLA QUOTA DEL 25% IMPOSTA DI SOGGIORNO DESTINATA ALL"I.P.A. TERRE DI ASOLO E MONTEGRAPPA" A SOSTEGNO DEI PROGETTI IN AMBITO TURISTICO.;18-01-2021;364;0;494;1;Spese correnti;4;Trasferimenti correnti;1;Trasferimenti correnti a Amministrazioni Pubbliche;2;Trasferimenti correnti a Amministrazioni Locali;18;Trasferimenti correnti a Consorzi di enti locali;18-01-2021;
84;1;0;"5.961,21";"5.961,21";AMMINISTRATORI COMUNALI; ;STIPENDI MESE DI: GENNAIO 21 - INDENNITA' DI CARICA.;19-01-2021;2;0;1;1;Spese correnti;3;Acquisto di beni e servizi;2;Acquisto di servizi;1;Organi e incarichi istituzionali dell'amministrazione;1;Organi istituzionali dell'amministrazione - Indennità;19-01-2021;
85;1;0;"488,16";"488,16";AMMINISTRATORI COMUNALI; ;STIPENDI MESE DI: GENNAIO 21 - GETTONI DI PRESENZA ANNO 2020.;19-01-2021;2;0;477;1;Spese correnti;3;Acquisto di beni e servizi;2;Acquisto di servizi;1;Organi e incarichi istituzionali dell'amministrazione;1;Organi istituzionali dell'amministrazione - Indennità;19-01-2021;
89;1;0;"250,00";"2.250,00";ADRAMAN ALMA; ;BORSA DI STUDIO PER MERITO SCOLASTICO - ANNO SCOLASTICO 2019-2020.;20-01-2021;280;0;459;1;Spese correnti;4;Trasferimenti correnti;2;Trasferimenti correnti a Famiglie;3;"Borse di studio, dottorati di ricerca e contratti di formazione specialistica area medica";1;Borse di studio;20-01-2021;
89;2;0;"250,00";"2.250,00";D'AGOSTINI GIULIA; ;BORSA DI STUDIO PER MERITO SCOLASTICO - ANNO SCOLASTICO 2019-2020.;20-01-2021;280;0;459;1;Spese correnti;4;Trasferimenti correnti;2;Trasferimenti correnti a Famiglie;3;"Borse di studio, dottorati di ricerca e contratti di formazione specialistica area medica";1;Borse di studio;20-01-2021;
89;3;0;"250,00";"2.250,00";MAROSTICA MARGHERITA; ;BORSA DI STUDIO PER MERITO SCOLASTICO - ANNO SCOLASTICO 2019-2020.;20-01-2021;280;0;459;1;Spese correnti;4;Trasferimenti correnti;2;Trasferimenti correnti a Famiglie;3;"Borse di studio, dottorati di ricerca e contratti di formazione specialistica area medica";1;Borse di studio;20-01-2021;
89;4;0;"250,00";"2.250,00";PELLIZZARI MARIA; ;BORSA DI STUDIO PER MERITO SCOLASTICO - ANNO SCOLASTICO 2019-2020.;20-01-2021;280;0;459;1;Spese correnti;4;Trasferimenti correnti;2;Trasferimenti correnti a Famiglie;3;"Borse di studio, dottorati di ricerca e contratti di formazione specialistica area medica";1;Borse di studio;20-01-2021;
89;5;0;"250,00";"2.250,00";RAVAGNOLO GIULIA; ;BORSA DI STUDIO PER MERITO SCOLASTICO - ANNO SCOLASTICO 2019-2020.;20-01-2021;280;0;459;1;Spese correnti;4;Trasferimenti correnti;2;Trasferimenti correnti a Famiglie;3;"Borse di studio, dottorati di ricerca e contratti di formazione specialistica area medica";1;Borse di studio;20-01-2021;
89;6;0;"500,00";"2.250,00";REBELLATO AURORA; ;BORSA DI STUDIO PER MERITO SCOLASTICO - ANNO SCOLASTICO 2019-2020.;20-01-2021;280;0;459;1;Spese correnti;4;Trasferimenti correnti;2;Trasferimenti correnti a Famiglie;3;"Borse di studio, dottorati di ricerca e contratti di formazione specialistica area medica";1;Borse di studio;20-01-2021;
89;7;0;"250,00";"2.250,00";ZANANDREA NORA; ;BORSA DI STUDIO PER MERITO SCOLASTICO - ANNO SCOLASTICO 2019-2020.;20-01-2021;280;0;459;1;Spese correnti;4;Trasferimenti correnti;2;Trasferimenti correnti a Famiglie;3;"Borse di studio, dottorati di ricerca e contratti di formazione specialistica area medica";1;Borse di studio;20-01-2021;
89;8;0;"250,00";"2.250,00";ZONTA GIULIA; ;BORSA DI STUDIO PER MERITO SCOLASTICO - ANNO SCOLASTICO 2019-2020.;20-01-2021;280;0;459;1;Spese correnti;4;Trasferimenti correnti;2;Trasferimenti correnti a Famiglie;3;"Borse di studio, dottorati di ricerca e contratti di formazione specialistica area medica";1;Borse di studio;20-01-2021;
90;1;0;"227,45";"227,45";Farmacie Piu' SAS - Carinatese; ;SALDO Fatt.n. 43/PA  del 30/12/2020 ACQUISTO FARMACI PER EMERGENZA SANITARIA;21-01-2021;563;0;468;1;Spese correnti;3;Acquisto di beni e servizi;1;Acquisto di beni;2;Altri beni di consumo;11;Generi alimentari;21-01-2021;
91;1;0;"300,82";"300,82";AGENZIA DELLE ENTRATE - RISCOSSIONE - FIRENZE; ;IMPEGNO E LIQUIDAZIONE RIMBORSO ALLAGENZIA DELLE ENTRATE-RISCOSSIONI DELLE SPESE DI NOTIFICA SU PARTITE ANNULLATE AI SENSI DELLART. 4 COMMA 1 DEL D.L. 119/2018.;22-01-2021;121;0;514;1;Spese correnti;3;Acquisto di beni e servizi;2;Acquisto di servizi;3;Aggi di riscossione;999;Altri aggi di riscossione n.a.c.;22-01-2021;
92;1;0;"1.657,92";"1.657,92";ASSOCIAZIONE VOLONTARIATO A.V.A.B.; ;IMPEGNO DI SPESA A FAVORE DELLASSOCIAZIONE INTERPARROCCHIALE VOLONTARI ASSISTENZA AMMALATI BISOGNOSI (A.V.A.B.) DI SAN ZENONE DEGLI EZZZELINI PER IL SERVIZIO DI CONSEGNA PASTI A DOMICILIO - ANNO 2020.;22-01-2021;574;0;12;1;Spese correnti;4;Trasferimenti correnti;1;Trasferimenti correnti a Amministrazioni Pubbliche;4;Trasferimenti correnti a organismi interni e/o unità locali della amministrazione;1;Trasferimenti correnti a organismi interni e/o unità locali della amministrazione;22-01-2021;
93;1;0;"96,18";"96,18";OMESSO NOMINATIVO NEL RISPETTO DELLA NORMATIVA SULLA PROTEZIONE DATI PERSONALI; ;LIQUIDAZIONE FATT. CASA DI RIPOSO AITA N. 14/B DEL 07.01.2021 PER PASTI MESE DICEMBRE 2020.;25-01-2021;576;0;90;1;Spese correnti;4;Trasferimenti correnti;2;Trasferimenti correnti a Famiglie;2;Interventi assistenziali;999;Altri assegni e sussidi assistenziali;25-01-2021;
94;1;0;"285,54";"285,54";OMESSO NOMINATIVO NEL RISPETTO DELLA NORMATIVA SULLA PROTEZIONE DATI PERSONALI; ;FATTURA CASA DI RIPOSO AITA N. 16/B DEL 07.01.2021 PER PASTI MESE DICEMBRE 2020.;25-01-2021;576;0;431;1;Spese correnti;4;Trasferimenti correnti;2;Trasferimenti correnti a Famiglie;2;Interventi assistenziali;999;Altri assegni e sussidi assistenziali;25-01-2021;
95;1;0;"527,50";"527,50";MARCA TREVISO - FONDAZIONE DI PARTECIPAZIONE; ;"QUOTA 25% PROGETTI MKTG TURISTICO ART.9, COMMA 3 DEL REGOLAMENTO OGD COMUNE DI SAN ZENONE DEGLI EZZELINI - SALDO QUOTA SPETTANTE ANNO 2019.";25-01-2021;364;0;503;1;Spese correnti;4;Trasferimenti correnti;1;Trasferimenti correnti a Amministrazioni Pubbliche;2;Trasferimenti correnti a Amministrazioni Locali;18;Trasferimenti correnti a Consorzi di enti locali;25-01-2021;
96;1;0;"71,50";"71,50";MARCA TREVISO - FONDAZIONE DI PARTECIPAZIONE; ;"QUOTA 25% PROGETTI MKTG TURISTICO ART.9, COMMA 3 DEL REGOLAMENTO OGD COMUNE DI SAN ZENONE DEGLI EZZELINI - SALDO QUOTA SPETTANTE ANNO 2019.";25-01-2021;365;0;502;1;Spese correnti;4;Trasferimenti correnti;1;Trasferimenti correnti a Amministrazioni Pubbliche;2;Trasferimenti correnti a Amministrazioni Locali;18;Trasferimenti correnti a Consorzi di enti locali;25-01-2021;
97;1;0;"12,70";"12,70";ABACO S.P.A.;ZB919D1F1A;SALDO Fatt.n. 2020140004293  del 02/12/2020 RISCOSSIONE COATTIVA (FIGURATIVA) RENDICONTO DELLA GESTIONE AL 30.11.2020 - RISCOSSIONE COATTIVA (FATTURA A COMPENSAZIONE CON RIVERSAMENTO) - VEDI REV. N. 21 - 22  DEL 26/01/2021.;26-01-2021;121;0;508;1;Spese correnti;3;Acquisto di beni e servizi;2;Acquisto di servizi;3;Aggi di riscossione;999;Altri aggi di riscossione n.a.c.;26-01-2021;
99;1;0;"1.220,00";"1.220,00";ACCATRE S.R.L.;Z732FC84DF;Fatt.n. 1/210050 del 13/01/2021;26-01-2021;39;2;403;1;Spese correnti;3;Acquisto di beni e servizi;2;Acquisto di servizi;19;Servizi informatici e di telecomunicazioni;5;Servizi per i sistemi e relativa manutenzione;26-01-2021;
100;1;0;"2.200,00";"2.200,00";SARETTA GIOVANNA;Z712D5CCC6;Fatt.n. 1 del 04/01/2021 ELABORAZIONE DATI  I.V.A. ANNO 2020.;26-01-2021;55;0;188;1;Spese correnti;3;Acquisto di beni e servizi;2;Acquisto di servizi;17;Servizi finanziari;999;Spese per servizi finanziari n.a.c.;26-01-2021;
101;1;0;"7.507,07";"7.507,07";PICCIN CLAUDIO; ;Fatt.n. 12 del 12/01/2021 Compenso revisore dei conti fino al 31/10/2020.;26-01-2021;36;0;391;1;Spese correnti;3;Acquisto di beni e servizi;2;Acquisto di servizi;1;Organi e incarichi istituzionali dell'amministrazione;8;"Compensi agli organi istituzionali di revisione, di controllo ed altri incarichi istituzionali dell'amministrazione";26-01-2021;
102;1;0;"271,36";"271,36";TIM S.P.A.;Z7F2E68750;SALDO Fatt.n. 4220421800048756  del 12/12/2020 TELEFONI 1BIM 2021;27-01-2021;235;0;307;1;Spese correnti;3;Acquisto di beni e servizi;2;Acquisto di servizi;5;Utenze e canoni;999;Utenze e canoni per altri servizi n.a.c.;27-01-2021;
103;1;0;"756,40";"756,40";TIM S.P.A.;ZE429271DF;SALDO Fatt.n. 4220421800048994  del 12/12/2020 TELEFONI 1BIM 2021;27-01-2021;34;0;392;1;Spese correnti;3;Acquisto di beni e servizi;2;Acquisto di servizi;5;Utenze e canoni;999;Utenze e canoni per altri servizi n.a.c.;27-01-2021;
104;1;0;"234,03";"234,03";TIM S.P.A.;6930022311;SALDO Fatt.n. 7X04437131  del 12/12/2020 TELEFONI 1BIM 2021;27-01-2021;34;0;398;1;Spese correnti;3;Acquisto di beni e servizi;2;Acquisto di servizi;5;Utenze e canoni;999;Utenze e canoni per altri servizi n.a.c.;27-01-2021;
105;1;0;"28,06";"28,06";SICURITALIA IVRI S.P.A.;Z3827208DE;SALDO Fatt.n. 9117016543  del 31/12/2020 SERVIZI ISPETTIVI DICEMBRE 2020;27-01-2021;235;0;92;1;Spese correnti;3;Acquisto di beni e servizi;2;Acquisto di servizi;5;Utenze e canoni;999;Utenze e canoni per altri servizi n.a.c.;27-01-2021;
106;1;0;"1.041,60";"1.041,60";KIRIKU' SOCIETA' COOPERATIVA SOCIALE ONLUS;ZFA2BFBEE7;SALDO Fatt.n. 1076  del 28/12/2020 EDUCATIVA DOMICILIARE - DICEMBRE 2020;27-01-2021;559;0;56;1;Spese correnti;3;Acquisto di beni e servizi;2;Acquisto di servizi;99;Altri servizi;999;Altri servizi diversi n.a.c.;27-01-2021;
107;1;0;"1.440,00";"1.440,00";NOIGROUP Coop. Soc. a R.L.;Z5F268727B;SALDO Fatt.n. 891  del 31/12/2020 GESTIONE BIBLIOTECA - DICEMBRE 2020;27-01-2021;302;1;553;1;Spese correnti;3;Acquisto di beni e servizi;2;Acquisto di servizi;16;Servizi amministrativi;999;Altre spese per servizi amministrativi;27-01-2021;
108;1;0;"1.781,82";"1.781,82";UNICOOPER SERVIZI S.C.R.L.;ZDB2BDF192;SALDO Fatt.n. 2346  del 31/12/2020 PULIZIA EDIFICI COMUNALI - DICEMBRE 2020;27-01-2021;34;2;45;1;Spese correnti;3;Acquisto di beni e servizi;2;Acquisto di servizi;13;Servizi ausiliari per il funzionamento dell'ente;2;Servizi di pulizia e lavanderia;27-01-2021;
109;1;0;"596,40";"596,40";UNA CASA PER L'UOMO - SOCIETA' COOPERATIVA SOCIALE;Z092CFD987;SALDO Fatt.n. FE/0000407  del 31/12/2020 PRESTAZIONI SOCIALI: NOV. DIC. 2020;27-01-2021;559;0;155;1;Spese correnti;3;Acquisto di beni e servizi;2;Acquisto di servizi;99;Altri servizi;999;Altri servizi diversi n.a.c.;27-01-2021;
110;1;0;"694,45";"694,45";KONE SPA;Z11299C38B;SALDO Fatt.n. 0094405638  del 31/12/2020 Fornitura Servizi di Manutenzione;27-01-2021;252;0;427;1;Spese correnti;3;Acquisto di beni e servizi;2;Acquisto di servizi;5;Utenze e canoni;999;Utenze e canoni per altri servizi n.a.c.;27-01-2021;
111;1;0;"567,30";"567,30";SICURITALIA IVRI S.P.A.;Z3827208DE;SALDO Fatt.n. 9117000215  del 02/01/2021 SERVIZI ISPETTIVI - GENNAIO 2021;27-01-2021;34;0;88;1;Spese correnti;3;Acquisto di beni e servizi;2;Acquisto di servizi;5;Utenze e canoni;999;Utenze e canoni per altri servizi n.a.c.;27-01-2021;
112;1;0;"29,66";"133,89";MAXI DI SRL; ;SALDO Fatt.n. D38521999000004  del 11/01/2021 ACQUISTO BENI PER EMERGENZA ALIMENTARE;27-01-2021;563;0;463;1;Spese correnti;3;Acquisto di beni e servizi;1;Acquisto di beni;2;Altri beni di consumo;11;Generi alimentari;27-01-2021;
112;2;0;"37,53";"133,89";MAXI DI SRL; ;SALDO Fatt.n. D38521999000002  del 08/01/2021 ACQUISTO BENI PER EMERGENZA ALIMENTARE;27-01-2021;563;0;463;1;Spese correnti;3;Acquisto di beni e servizi;1;Acquisto di beni;2;Altri beni di consumo;11;Generi alimentari;27-01-2021;
112;3;0;"66,70";"133,89";MAXI DI SRL; ;SALDO Fatt.n. D38521999000001  del 07/01/2021 ACQUISTO BENI PER EMERGENZA ALIMENTARE;27-01-2021;563;0;463;1;Spese correnti;3;Acquisto di beni e servizi;1;Acquisto di beni;2;Altri beni di consumo;11;Generi alimentari;27-01-2021;
113;1;0;"14.497,28";"14.497,28";STUDIO ZONCHEDDU E ASSOCIATI;Z462AB74E3;SALDO Fatt.n. 91  del 31/12/2020 COMPETENZE PROFESSIONALI;27-01-2021;744;0;339;2;Spese in conto capitale;2;Investimenti fissi lordi e acquisto di terreni;1;Beni materiali;9;Beni immobili;999;Beni immobili n.a.c.;27-01-2021;
114;1;0;"54,01";"54,01";KUWAIT PETROLEUM ITALIA S.P.A.;Z4E197F01F;SALDO Fatt.n. PJ03411174  del 31/12/2020 CARBURANTE AUTO VIGILI - DICEMBRE 2020;27-01-2021;179;0;109;1;Spese correnti;3;Acquisto di beni e servizi;1;Acquisto di beni;2;Altri beni di consumo;2;"Carburanti, combustibili e lubrificanti";27-01-2021;
115;1;0;"37,35";"284,27";KUWAIT PETROLEUM ITALIA S.P.A.;Z4E197F01F;SALDO Fatt.n. PJ03411172  del 31/12/2020 CARBURANTE AUTO OPERAI - DICEMBRE 2020;27-01-2021;590;0;111;1;Spese correnti;3;Acquisto di beni e servizi;1;Acquisto di beni;2;Altri beni di consumo;2;"Carburanti, combustibili e lubrificanti";27-01-2021;
115;2;0;"246,92";"284,27";KUWAIT PETROLEUM ITALIA S.P.A.;Z4E197F01F;SALDO Fatt.n. PJ03411171  del 31/12/2020 CARBURANTE AUTO PROT. CIVILE - DICEMBRE 2020;27-01-2021;590;0;111;1;Spese correnti;3;Acquisto di beni e servizi;1;Acquisto di beni;2;Altri beni di consumo;2;"Carburanti, combustibili e lubrificanti";27-01-2021;
116;1;0;"207,19";"207,19";BELLNET INTERNATIONAL S.R.L.;Z752BFBD5F;SALDO Fatt.n. FATTPA 2975_20  del 31/12/2020 TRAFFICO TELEFONICO - GENNAIO 2021;27-01-2021;34;0;58;1;Spese correnti;3;Acquisto di beni e servizi;2;Acquisto di servizi;5;Utenze e canoni;1;Telefonia fissa;27-01-2021;
117;1;0;"1.768,54";"1.768,54";OLIVETTI S.P.A.;ZC92648F71;ACCONTO Fatt.n. A20020201000051131  del 31/12/2020 NOLEGGIO FOTOCOPIATORI: OTTOBRE-DICEMBRE 2020;27-01-2021;34;0;508;1;Spese correnti;3;Acquisto di beni e servizi;2;Acquisto di servizi;5;Utenze e canoni;999;Utenze e canoni per altri servizi n.a.c.;27-01-2021;
118;1;0;"193,88";"193,88";OLIVETTI S.P.A.;ZC92648F71;SALDO Fatt.n. A20020201000051131  del 31/12/2020 NOLEGGIO FOTOCOPIATORI: OTTOBRE-DICEMBRE 2020;27-01-2021;252;0;509;1;Spese correnti;3;Acquisto di beni e servizi;2;Acquisto di servizi;5;Utenze e canoni;999;Utenze e canoni per altri servizi n.a.c.;27-01-2021;
119;1;0;"122,00";"122,00";ZONTA FRANCO;Z9F2FDFF6D;SALDO Fatt.n. FPA 3/20  del 18/12/2020 REVISIONE AUTO COMUNALE;27-01-2021;590;1;432;1;Spese correnti;3;Acquisto di beni e servizi;2;Acquisto di servizi;9;Manutenzione ordinaria e riparazioni;1;"Manutenzione ordinaria e riparazioni di mezzi di trasporto ad uso civile, di sicurezza e ordine pubblico";27-01-2021;
120;1;0;"3.312,86";"3.312,86";CASA DI RIPOSO 'AITA'; ;ACCONTO Fatt.n. 5/C  del 07/01/2021 FORNITURA PASTI MENSA  - DICEMBRE 2020;27-01-2021;274;1;54;1;Spese correnti;3;Acquisto di beni e servizi;2;Acquisto di servizi;15;Contratti di servizio pubblico;6;Contratti di servizio per le mense scolastiche;27-01-2021;
121;1;0;"1.428,95";"1.428,95";CASA DI RIPOSO 'AITA'; ;SALDO Fatt.n. 5/C  del 07/01/2021 FORNITURA PASTI MENSA  - DICEMBRE 2020;27-01-2021;274;1;472;1;Spese correnti;3;Acquisto di beni e servizi;2;Acquisto di servizi;15;Contratti di servizio pubblico;6;Contratti di servizio per le mense scolastiche;27-01-2021;
122;1;0;"96,98";"96,98";KUWAIT PETROLEUM ITALIA S.P.A.;Z4E197F01F;SALDO Fatt.n. PJ03411173  del 31/12/2020 CARBURANTE AUTO UFF. SOCIALE - DICEMBRE 2020;27-01-2021;571;0;110;1;Spese correnti;3;Acquisto di beni e servizi;1;Acquisto di beni;2;Altri beni di consumo;2;"Carburanti, combustibili e lubrificanti";27-01-2021;
123;1;0;"5.243,40";"5.243,40";CASA DI RIPOSO 'AITA';Z6828EB1E8;SALDO Fatt.n. 41/B  del 18/01/2021 SERVIZIO DI A.D. - DICEMBRE 2020;27-01-2021;562;1;240;1;Spese correnti;3;Acquisto di beni e servizi;2;Acquisto di servizi;15;Contratti di servizio pubblico;9;Contratti di servizio di assistenza sociale domiciliare;27-01-2021;
124;1;0;"12.410,72";"24.821,44";Mobilita' di Marca S.P.A.;7976331491;SALDO Fatt.n. 000573  del 31/12/2020 SERVIZIO DI TRASPORTO SCOLASTICO - NOVEMBRE 2020;27-01-2021;275;1;376;1;Spese correnti;3;Acquisto di beni e servizi;2;Acquisto di servizi;15;Contratti di servizio pubblico;2;Contratti di servizio di trasporto scolastico;27-01-2021;
124;2;0;"12.410,72";"24.821,44";Mobilita' di Marca S.P.A.;7976331491;SALDO Fatt.n. 000574  del 31/12/2020 SERVIZIO DI TRASPORTO SCOLASTICO - DICEMBRE 2020;27-01-2021;275;1;376;1;Spese correnti;3;Acquisto di beni e servizi;2;Acquisto di servizi;15;Contratti di servizio pubblico;2;Contratti di servizio di trasporto scolastico;27-01-2021;
125;1;0;"899,99";"899,99";LA ESSE COOPERATIVA SOCIALE;Z302F1C73A;SALDO Fatt.n. 401/01  del 31/12/2020 PROGETTO POLITICHE ATTIVE PER IL LAVORO;27-01-2021;568;0;367;1;Spese correnti;3;Acquisto di beni e servizi;2;Acquisto di servizi;99;Altri servizi;999;Altri servizi diversi n.a.c.;27-01-2021;
126;1;0;"3.178,50";"3.178,50";CASA DI RIPOSO 'AITA'; ;SALDO Fatt.n. 38/B  del 12/01/2021 SERVIZIO DI A.D.  - NOVEMBRE 2020;27-01-2021;562;1;240;1;Spese correnti;3;Acquisto di beni e servizi;2;Acquisto di servizi;15;Contratti di servizio pubblico;9;Contratti di servizio di assistenza sociale domiciliare;27-01-2021;
127;1;0;"9.760,00";"9.760,00";COOPERATIVA AGRICOLA S.ZENONE S.C.R.L.;ZA82C8D215;SALDO Fatt.n. 2  del 13/01/2021 AAFFIDAMENTO INCARICO SFALCIO ERBA BANCHINE STRADALI;27-01-2021;593;0;134;1;Spese correnti;3;Acquisto di beni e servizi;2;Acquisto di servizi;9;Manutenzione ordinaria e riparazioni;12;Manutenzione ordinaria e riparazioni di terreni e beni materiali non prodotti;27-01-2021;
128;1;0;"2.313,43";"2.313,43";COOPERATIVA AGRICOLA S.ZENONE S.C.R.L.;Z2428A71E3;SALDO Fatt.n. 1  del 13/01/2021 LAVORI DI SFALCIO ERBA BANCHINE STRADALI;27-01-2021;1007;0;283;2;Spese in conto capitale;2;Investimenti fissi lordi e acquisto di terreni;1;Beni materiali;9;Beni immobili;12;Infrastrutture stradali;27-01-2021;
129;1;0;"366,00";"366,00";VIA VAI PICCOLA COOPERATIVA SOCIALE a.r.l.;Z542E44440;SALDO Fatt.n. 411  del 31/12/2020 TRASLOCO BIBLIOTECA COMUNALE;27-01-2021;43;0;314;1;Spese correnti;3;Acquisto di beni e servizi;2;Acquisto di servizi;13;Servizi ausiliari per il funzionamento dell'ente;3;"Trasporti, traslochi e facchinaggio";27-01-2021;
130;1;0;"171,09";"171,09";NOIGROUP Coop. Soc. a R.L.;ZDE2A28443;SALDO Fatt.n. 894  del 31/12/2020 SERVIZIO AL MUSEO - DICEMBRE 2020;27-01-2021;303;0;490;1;Spese correnti;3;Acquisto di beni e servizi;2;Acquisto di servizi;99;Altri servizi;999;Altri servizi diversi n.a.c.;27-01-2021;
131;1;0;"-621,00";"31.564,50";A.T.E.R. - AZIENDA TERRIT. EDILIZIA RESIDENZIALE; ;ACCONTO Fatt.n. G26/2020  del 21/05/2020 NOTA DI CREDITO;27-01-2021;561;0;43;1;Spese correnti;3;Acquisto di beni e servizi;2;Acquisto di servizi;7;Utilizzo di beni di terzi;1;Locazione di beni immobili;27-01-2021;
131;2;0;"621,00";"31.564,50";A.T.E.R. - AZIENDA TERRIT. EDILIZIA RESIDENZIALE; ;SALDO Fatt.n. G16/2020  del 13/02/2020 SPESE DI REGISTRAZIONE;27-01-2021;561;0;43;1;Spese correnti;3;Acquisto di beni e servizi;2;Acquisto di servizi;7;Utilizzo di beni di terzi;1;Locazione di beni immobili;27-01-2021;
131;3;0;"31.564,50";"31.564,50";A.T.E.R. - AZIENDA TERRIT. EDILIZIA RESIDENZIALE; ;SALDO Fatt.n. G7/2020  del 10/01/2020 CANONE AFFITTO CENTRO POLIVALENTE ATER - 1 SEMESTRE 2020;27-01-2021;561;0;43;1;Spese correnti;3;Acquisto di beni e servizi;2;Acquisto di servizi;7;Utilizzo di beni di terzi;1;Locazione di beni immobili;27-01-2021;
135;1;0;"256,03";"256,03";MAXI DI SRL; ;Fatt.n. D38521999000009 del 18/01/2021 EMERGENZA ALIMENTARE;03-02-2021;563;0;463;1;Spese correnti;3;Acquisto di beni e servizi;1;Acquisto di beni;2;Altri beni di consumo;11;Generi alimentari;03-02-2021;
143;1;0;"245,00";"245,00";AGENZIA DELLE ENTRATE - UFFICIO TERRIT. DI MONTEBELLUNA; ;AGENZIA DELLE ENTRATE F24EP-PR20210000261121 -SQUADRATURA BKIT:1/-245 - ORDIN:0/0 (P. 1 -R. 3 del 11/01/2021);04-02-2021;34;3;473;1;Spese correnti;3;Acquisto di beni e servizi;2;Acquisto di servizi;16;Servizi amministrativi;999;Altre spese per servizi amministrativi;04-02-2021;
144;1;0;"366,00";"366,00";INTESA SANPAOLO S.p.A.;ZCB299103F;Fatt.n. 016X20211V6000524 del 15/01/2021 AP - Servizio PUBBLICA AMMINISTRAZIONE;08-02-2021;33;1;413;1;Spese correnti;3;Acquisto di beni e servizi;2;Acquisto di servizi;9;Manutenzione ordinaria e riparazioni;11;Manutenzione ordinaria e riparazioni di altri beni materiali;08-02-2021;
147;1;0;"250,00";"250,00";CARRON GAIA; ;EROGAZIONE BORSA DI STUDIO COMUNALE.;09-02-2021;280;0;26;1;Spese correnti;4;Trasferimenti correnti;2;Trasferimenti correnti a Famiglie;3;"Borse di studio, dottorati di ricerca e contratti di formazione specialistica area medica";1;Borse di studio;09-02-2021;
148;1;0;"20.000,00";"20.000,00";SKYFITNESS ITALIA;ZCA2F8757E;Fatt.n. 8 del 01/02/2021 REALIZZAZIONE PERCORSO OUTDOOR FITNESS PARCO FRONTE SCUOLE CIG ZCA2F8757E;10-02-2021;890;0;395;2;Spese in conto capitale;2;Investimenti fissi lordi e acquisto di terreni;1;Beni materiali;5;Attrezzature;999;Attrezzature n.a.c.;10-02-2021;
149;1;0;"119,99";"119,99";KUWAIT PETROLEUM ITALIA S.P.A.;Z4E197F01F;Fatt.n. PJ03524358 del 31/01/2021 CARBURANTE AUTOMEZZI SERVIZI SOCIALI - GENNAIO 2021;10-02-2021;571;0;110;1;Spese correnti;3;Acquisto di beni e servizi;1;Acquisto di beni;2;Altri beni di consumo;2;"Carburanti, combustibili e lubrificanti";10-02-2021;
150;1;0;"209,60";"462,21";KUWAIT PETROLEUM ITALIA S.P.A.;Z4E197F01F;Fatt.n. PJ03524357 del 31/01/2021 CARBURANTE AUTOMEZZI VIABILITA' - GENNAIO 2021;10-02-2021;590;0;111;1;Spese correnti;3;Acquisto di beni e servizi;1;Acquisto di beni;2;Altri beni di consumo;2;"Carburanti, combustibili e lubrificanti";10-02-2021;
150;2;0;"252,61";"462,21";KUWAIT PETROLEUM ITALIA S.P.A.;Z4E197F01F;Fatt.n. PJ03524356 del 31/01/2021 CARBURANTE AUTOMEZZI VIABILITA' - GENNAIO 2021;10-02-2021;590;0;111;1;Spese correnti;3;Acquisto di beni e servizi;1;Acquisto di beni;2;Altri beni di consumo;2;"Carburanti, combustibili e lubrificanti";10-02-2021;
151;1;0;"63,99";"63,99";KUWAIT PETROLEUM ITALIA S.P.A.;Z4E197F01F;Fatt.n. PJ03524355 del 31/01/2021 CARBURANTE AUTOMEZZI SERVIZI AMMINISTRATIVI - GENNAIO 2021;10-02-2021;47;0;108;1;Spese correnti;3;Acquisto di beni e servizi;1;Acquisto di beni;2;Altri beni di consumo;2;"Carburanti, combustibili e lubrificanti";10-02-2021;
152;1;0;"258,82";"258,82";BELLNET INTERNATIONAL S.R.L.;Z752BFBD5F;Fatt.n. FATTPA 192_21 del 31/01/2021 CANONI PER TRAFFICO TELEFONICO;10-02-2021;34;0;58;1;Spese correnti;3;Acquisto di beni e servizi;2;Acquisto di servizi;5;Utenze e canoni;1;Telefonia fissa;10-02-2021;
153;1;0;"1.769,00";"1.769,00";ARTUSO IMPIANTI S.R.L.;ZF2300036F;Fatt.n. 30001 del 29/01/2021 FORNITURA E POSA IN OPERA  DI LUMINARIE NATALIZIE;10-02-2021;600;0;453;1;Spese correnti;3;Acquisto di beni e servizi;2;Acquisto di servizi;5;Utenze e canoni;999;Utenze e canoni per altri servizi n.a.c.;10-02-2021;
154;1;0;"10,74";"10,74";LA IDROFERRAMENTA SRL;Z3D2D0846B;Fatt.n. 6/PA del 30/01/2021 FORNITURA MATERIALE PER MANUTENZIONI;10-02-2021;591;0;161;1;Spese correnti;3;Acquisto di beni e servizi;1;Acquisto di beni;2;Altri beni di consumo;999;Altri beni e materiali di consumo n.a.c.;10-02-2021;
155;1;0;"28,06";"28,06";SICURITALIA IVRI S.P.A.;Z3827208DE;Fatt.n. 9117001398 del 31/01/2021 COLLEGAMENTO DEGLI IMPIANTI DI ALLARME ALLA CENTRALE OPERATIVA;10-02-2021;235;0;92;1;Spese correnti;3;Acquisto di beni e servizi;2;Acquisto di servizi;5;Utenze e canoni;999;Utenze e canoni per altri servizi n.a.c.;10-02-2021;
156;1;0;"965,25";"965,25";PLT PUREGREEN;7134285639;Fatt.n. 20210040000538 del 15/01/2021 FORNITURA ENERGIA ELETTRICA;10-02-2021;600;0;216;1;Spese correnti;3;Acquisto di beni e servizi;2;Acquisto di servizi;5;Utenze e canoni;4;Energia elettrica;10-02-2021;
157;1;0;"534,94";"534,94";PLT PUREGREEN;7134285639;Fatt.n. 20210040000547 del 15/01/2021 ENERGIA ELETTRICA SCUOLA CA' RAINATI 01/11/20-31/12/20;10-02-2021;235;0;209;1;Spese correnti;3;Acquisto di beni e servizi;2;Acquisto di servizi;5;Utenze e canoni;4;Energia elettrica;10-02-2021;
158;1;0;"388,87";"388,87";PLT PUREGREEN;7134285639;Fatt.n. 20210040000552 del 15/01/2021 ENERGIA ELETTRICA CENTRO POLIV. 01/05/20-31/12/20;10-02-2021;561;2;215;1;Spese correnti;3;Acquisto di beni e servizi;2;Acquisto di servizi;5;Utenze e canoni;4;Energia elettrica;10-02-2021;
159;1;0;"518,15";"518,15";PLT PUREGREEN;7134285639;Fatt.n. 20210040000546 del 15/01/2021 ENERGIA ELETTRICA PUBBLICA NOVEMBRE-DICEMBRE 2020;10-02-2021;600;0;216;1;Spese correnti;3;Acquisto di beni e servizi;2;Acquisto di servizi;5;Utenze e canoni;4;Energia elettrica;10-02-2021;
160;1;0;"225,27";"225,27";PLT PUREGREEN;7134285639;Fatt.n. 20210040000540 del 15/01/2021 FORNITURA ENERGIA ELETTRICA MAGAZZINO 01/11/20-31/12/20;10-02-2021;71;0;208;1;Spese correnti;3;Acquisto di beni e servizi;2;Acquisto di servizi;5;Utenze e canoni;4;Energia elettrica;10-02-2021;
161;1;0;"440,24";"440,24";PLT PUREGREEN;7134285639;Fatt.n. 20210040000551 del 15/01/2021 FORNITURA ENERGIA ELETTRICA SCUOLA LIEDOLO 01/11/20 31/12/20;10-02-2021;235;0;209;1;Spese correnti;3;Acquisto di beni e servizi;2;Acquisto di servizi;5;Utenze e canoni;4;Energia elettrica;10-02-2021;
162;1;0;"2.660,69";"2.660,69";PLT PUREGREEN;7134285639;Fatt.n. 20210040000549 del 15/01/2021 FORNITURA ENERGIA ELETTRICA SCUOLA CAPOLUOGO 01/11/20 31/12/20;10-02-2021;252;0;210;1;Spese correnti;3;Acquisto di beni e servizi;2;Acquisto di servizi;5;Utenze e canoni;4;Energia elettrica;10-02-2021;
163;1;0;"465,20";"2.180,40";PLT PUREGREEN;7134285639;Fatt.n. 20210040000542 del 15/01/2021 FORNITURA ENERGIA ELETTRICA STADIO 01/11/20-31/12/20;10-02-2021;530;0;214;1;Spese correnti;3;Acquisto di beni e servizi;2;Acquisto di servizi;5;Utenze e canoni;4;Energia elettrica;10-02-2021;
163;2;0;"1.715,20";"2.180,40";PLT PUREGREEN;7134285639;Fatt.n. 20210040000539 del 15/01/2021 FORNITURA ENERGIA ELETTRICA PALESTRA 01/11/20-31/12/20;10-02-2021;530;0;214;1;Spese correnti;3;Acquisto di beni e servizi;2;Acquisto di servizi;5;Utenze e canoni;4;Energia elettrica;10-02-2021;
164;1;0;"193,28";"193,28";PLT PUREGREEN;7134285639;Fatt.n. 20210040000544 del 15/01/2021 FORNITURA ENERGIA ELETTRICA EX SCUOLA SOPRACASTELLO 01/11/20-31/12/20;10-02-2021;561;2;215;1;Spese correnti;3;Acquisto di beni e servizi;2;Acquisto di servizi;5;Utenze e canoni;4;Energia elettrica;10-02-2021;
165;1;0;"234,85";"234,85";NEULIFT SERVICE TRIVENETO SRL;ZDF2E2C3E5;Fatt.n. 100004 del 19/01/2021 MANUTENZIONE ASCENSORE SCUOLA CA RAINATI;10-02-2021;235;0;291;1;Spese correnti;3;Acquisto di beni e servizi;2;Acquisto di servizi;5;Utenze e canoni;999;Utenze e canoni per altri servizi n.a.c.;10-02-2021;
166;1;0;"66,90";"66,90";MAZZAROLO S.R.L.;Z6A2F71038;Fatt.n. 2021_3_1 del 18/01/2021 COMPETENZE E COMMISSIONI PER REVISIONE;10-02-2021;590;1;384;1;Spese correnti;3;Acquisto di beni e servizi;2;Acquisto di servizi;9;Manutenzione ordinaria e riparazioni;1;"Manutenzione ordinaria e riparazioni di mezzi di trasporto ad uso civile, di sicurezza e ordine pubblico";10-02-2021;
167;1;0;"592,92";"592,92";FELTRIN S.R.L.;Z8A3001DD9;Fatt.n. 4 del 15/01/2021 FORNITURA DI SALE DI SODIO X STRADE;10-02-2021;594;0;462;1;Spese correnti;3;Acquisto di beni e servizi;2;Acquisto di servizi;9;Manutenzione ordinaria e riparazioni;8;Manutenzione ordinaria e riparazioni di beni immobili;10-02-2021;
168;1;0;"304,76";"304,76";TEC.SE. SRL;ZD929FFFBA;Fatt.n. 4 del 14/01/2021 INTERVENTI DI RIFACIMENTO SEGNALETICA STRADALE;10-02-2021;745;0;625;2;Spese in conto capitale;2;Investimenti fissi lordi e acquisto di terreni;1;Beni materiali;9;Beni immobili;12;Infrastrutture stradali;10-02-2021;
169;1;0;"3.058,05";"3.058,05";TIPOGRAFIA BATTAGIN SRL;ZE02F90C88;Fatt.n. 632 del 31/12/2020 FORNITURA MATERIALE ANTI-COVID;10-02-2021;34;1;391;1;Spese correnti;3;Acquisto di beni e servizi;2;Acquisto di servizi;9;Manutenzione ordinaria e riparazioni;8;Manutenzione ordinaria e riparazioni di beni immobili;10-02-2021;
170;1;0;"1.781,20";"1.781,20";TIPOGRAFIA BATTAGIN SRL;Z672F4CEE5;Fatt.n. 633 del 31/12/2020 MATERIALE PER MUSEO;10-02-2021;305;0;376;1;Spese correnti;3;Acquisto di beni e servizi;2;Acquisto di servizi;16;Servizi amministrativi;999;Altre spese per servizi amministrativi;10-02-2021;
206;1;0;"5.961,21";"5.961,21";AMMINISTRATORI COMUNALI; ;STIPENDI MESE DI: FEBBRAIO 21;15-02-2021;2;0;1;1;Spese correnti;3;Acquisto di beni e servizi;2;Acquisto di servizi;1;Organi e incarichi istituzionali dell'amministrazione;1;Organi istituzionali dell'amministrazione - Indennità;15-02-2021;
207;1;0;"316,24";"316,24";AMMINISTRATORI COMUNALI; ;RIMBORSO SPESE VIAGGIO SINDACO E ASSESSORE COMUNALE MESE FEBBRAIO 2021.;15-02-2021;2;0;507;1;Spese correnti;3;Acquisto di beni e servizi;2;Acquisto di servizi;1;Organi e incarichi istituzionali dell'amministrazione;2;Organi istituzionali dell'amministrazione - Rimborsi;15-02-2021;
210;1;0;"14.999,90";"14.999,90";TEC.SE. SRL;ZD32D663B5;Fatt.n. 46 del 10/02/2021 INTERVENTI DI RIFACIMENTO SEGNALETICA STRADALE;15-02-2021;1030;0;192;2;Spese in conto capitale;2;Investimenti fissi lordi e acquisto di terreni;1;Beni materiali;9;Beni immobili;12;Infrastrutture stradali;15-02-2021;
211;1;0;"29,41";"29,41";MAXI DI SRL; ;Fatt.n. D38521999000021 del 05/02/2021 ACQUISTO BENI E GENERI ALIMENTARI PER BANDO EMERGENZA ALIMENTARE;15-02-2021;563;0;463;1;Spese correnti;3;Acquisto di beni e servizi;1;Acquisto di beni;2;Altri beni di consumo;11;Generi alimentari;15-02-2021;
212;1;0;"63,80";"63,80";MAXI DI SRL; ;Fatt.n. D38521999000018 del 04/02/2021 ACQUISTO BENI E GENERI BANDO EMERGENZA ALIMENTARE;15-02-2021;563;0;463;1;Spese correnti;3;Acquisto di beni e servizi;1;Acquisto di beni;2;Altri beni di consumo;11;Generi alimentari;15-02-2021;
213;1;0;"1.112,10";"1.112,10";NOIGROUP Coop. Soc. a R.L.;ZDE2A28443;"Fatt.n. 24 del 31/01/2021 SERVIZIO APERTURA, CHIUSURA, BIGLIETTERIA MUSEO MULTIMEDIALE ANTICA PIEVE. MESE DI GENNAIO 2021";15-02-2021;303;0;490;1;Spese correnti;3;Acquisto di beni e servizi;2;Acquisto di servizi;99;Altri servizi;999;Altri servizi diversi n.a.c.;15-02-2021;
214;1;0;"1.440,00";"1.440,00";NOIGROUP Coop. Soc. a R.L.;Z5F268727B;Fatt.n. 25 del 31/01/2021 GESTIONE BIBLIOTECA GENNAIO 2021;15-02-2021;302;1;553;1;Spese correnti;3;Acquisto di beni e servizi;2;Acquisto di servizi;16;Servizi amministrativi;999;Altre spese per servizi amministrativi;15-02-2021;
215;1;0;"32,56";"32,56";MAXI DI SRL; ;Fatt.n. D38521999000014 del 26/01/2021 ACQUISTO BENI PER EMERGENZA ALIMENTARE;15-02-2021;563;0;463;1;Spese correnti;3;Acquisto di beni e servizi;1;Acquisto di beni;2;Altri beni di consumo;11;Generi alimentari;15-02-2021;
216;1;0;"132,46";"132,46";MAXI DI SRL; ;Fatt.n. D38521999000013 del 20/01/2021 ACQUISTO BENI PER EMERGENZA ALIMENTARE;15-02-2021;563;0;463;1;Spese correnti;3;Acquisto di beni e servizi;1;Acquisto di beni;2;Altri beni di consumo;11;Generi alimentari;15-02-2021;
217;1;0;"26,63";"26,63";MAXI DI SRL; ;Fatt.n. D38521999000010 del 18/01/2021 ACQUISTO BENI PER EMERGENZA ALIMENTARE;15-02-2021;563;0;463;1;Spese correnti;3;Acquisto di beni e servizi;1;Acquisto di beni;2;Altri beni di consumo;11;Generi alimentari;15-02-2021;
218;1;0;"1.690,80";"1.690,80";CASA DI RIPOSO 'AITA'; ;Fatt.n. 32/B del 11/01/2021 PRESTAZIONI SOCIALI L.V. - DICEMBRE 2020;16-02-2021;560;0;55;1;Spese correnti;3;Acquisto di beni e servizi;2;Acquisto di servizi;15;Contratti di servizio pubblico;8;Contratti di servizio di assistenza sociale residenziale e semiresidenziale;16-02-2021;
219;1;0;"906,22";"906,22";TIPOGRAFIA BATTAGIN SRL;ZE02F90C88;Fatt.n. 634 del 31/12/2020 FORNITURA MATERIALE;16-02-2021;34;1;391;1;Spese correnti;3;Acquisto di beni e servizi;2;Acquisto di servizi;9;Manutenzione ordinaria e riparazioni;8;Manutenzione ordinaria e riparazioni di beni immobili;16-02-2021;
220;1;0;"0,37";"0,37";ALTO TREVIGIANO SERVIZI S.R.L.;Z3F2BAC0F4;Fatt.n. 62202100000718 del 03/02/2021 TORRE EZZELINI dal 09/10/2020 al 31/12/2020;16-02-2021;313;2;101;1;Spese correnti;3;Acquisto di beni e servizi;2;Acquisto di servizi;5;Utenze e canoni;5;Acqua;16-02-2021;
221;1;0;"152,30";"152,30";POSTE ITALIANE SPA - PROVENTI POLO LOGISTICO;Z0B2DA2D69;SALDO Fatt.n. 1021004265  del 26/01/2021 PRODOTTI POSTALI - DICEMBRE 2020;16-02-2021;26;0;220;1;Spese correnti;3;Acquisto di beni e servizi;2;Acquisto di servizi;16;Servizi amministrativi;2;Spese postali;16-02-2021;
222;1;0;"4.561,55";"4.561,55";COMUNE DI ASOLO; ;SPORTELLO IMMIGRATI - LIQUIDAZIONE SU PRESENTAZIONE RENDICONTO ATTIVITA 2020 DA PARTE DEL COMUNE CAPOFILA DI ASOLO.;16-02-2021;575;1;70;1;Spese correnti;4;Trasferimenti correnti;1;Trasferimenti correnti a Amministrazioni Pubbliche;2;Trasferimenti correnti a Amministrazioni Locali;3;Trasferimenti correnti a Comuni;16-02-2021;
223;1;0;"1.375,00";"1.375,00";A.N.U.S.C.A. - ASSOCIAZIONE  NAZIONALE UFFICIALI DI STATO CIVILE E ANAGRAFE; ;IMPEGNO E LIQUIDAZIONE QUOTA ASSOCIATIVA A.N.U.S.C.A. ANNO 2021.;19-02-2021;51;1;31;1;Spese correnti;3;Acquisto di beni e servizi;2;Acquisto di servizi;99;Altri servizi;3;Quote di associazioni;19-02-2021;
224;1;0;"21,83";"95,53";MAXI DI SRL; ;Fatt.n. D38521999000027 del 17/02/2021 ACQUISTO BENI E GENERI ALIMENTARI FONDO COVID;19-02-2021;563;0;463;1;Spese correnti;3;Acquisto di beni e servizi;1;Acquisto di beni;2;Altri beni di consumo;11;Generi alimentari;19-02-2021;
224;2;0;"73,70";"95,53";MAXI DI SRL; ;Fatt.n. D38521999000029 del 18/02/2021 ACQUISTO BENI E GENERI ALIMENTARI FONDO EMERGENZA COVID;19-02-2021;563;0;463;1;Spese correnti;3;Acquisto di beni e servizi;1;Acquisto di beni;2;Altri beni di consumo;11;Generi alimentari;19-02-2021;
225;1;0;"11,08";"11,08";IMPRESA VERDE TREVISO-BELLUNO S.R.L.;Z7C2BFC524;Fatt.n. 21V00-00061 del 12/02/2021 ADEMPIMENTI PER OTTENIMENTO PRESTAZIONI SOCIALI AGEVOLATE IN CONVENZIONE CON I CAAF;19-02-2021;559;0;54;1;Spese correnti;3;Acquisto di beni e servizi;2;Acquisto di servizi;99;Altri servizi;999;Altri servizi diversi n.a.c.;19-02-2021;
226;1;0;"402,60";"402,60";INFOTEAM SRL;ZDA2EF10CB;Fatt.n. 00000000363 del 09/02/2021 RINNOVO LICENZE ANTIVIRUS CENTRO POLIVALENTE LA ROGGIA;19-02-2021;39;1;350;1;Spese correnti;3;Acquisto di beni e servizi;2;Acquisto di servizi;7;Utilizzo di beni di terzi;6;Licenze d'uso per software;19-02-2021;
227;1;0;"48,90";"175,29";ALTO TREVIGIANO SERVIZI S.R.L.;Z3F2BAC0F4;Fatt.n. 62202100000723 del 03/02/2021 Consumi magazzino dal 01/10/2020 al 31/12/2020;19-02-2021;34;0;97;1;Spese correnti;3;Acquisto di beni e servizi;2;Acquisto di servizi;5;Utenze e canoni;5;Acqua;19-02-2021;
227;2;0;"126,39";"175,29";ALTO TREVIGIANO SERVIZI S.R.L.;Z3F2BAC0F4;Fatt.n. 62202100000727 del 03/02/2021 Fattura Municipio dal 01/10/2020 al 31/12/2020;19-02-2021;34;0;97;1;Spese correnti;3;Acquisto di beni e servizi;2;Acquisto di servizi;5;Utenze e canoni;5;Acqua;19-02-2021;
228;1;0;"125,72";"125,72";ALTO TREVIGIANO SERVIZI S.R.L.;Z3F2BAC0F4;Fatt.n. 62202100000740 del 03/02/2021 Scuole medie dal 01/10/2020 al 31/12/2020;19-02-2021;252;0;104;1;Spese correnti;3;Acquisto di beni e servizi;2;Acquisto di servizi;5;Utenze e canoni;5;Acqua;19-02-2021;
229;1;0;"37,35";"37,35";ALTO TREVIGIANO SERVIZI S.R.L.;Z3F2BAC0F4;Fatt.n. 62202100000725 del 03/02/2021 Villa Rubelli dal 09/10/2020 al 31/12/2020;19-02-2021;310;0;99;1;Spese correnti;3;Acquisto di beni e servizi;2;Acquisto di servizi;5;Utenze e canoni;5;Acqua;19-02-2021;
230;1;0;"155,78";"825,22";ALTO TREVIGIANO SERVIZI S.R.L.;Z3F2BAC0F4;Fatt.n. 62202100000731 del 03/02/2021 IMPIANTI SPORTIVI CAPOLUOGO dal 01/10/2020 al 31/12/2020;19-02-2021;530;0;103;1;Spese correnti;3;Acquisto di beni e servizi;2;Acquisto di servizi;5;Utenze e canoni;5;Acqua;19-02-2021;
230;2;0;"669,44";"825,22";ALTO TREVIGIANO SERVIZI S.R.L.;Z3F2BAC0F4;Fatt.n. 62202100000730 del 03/02/2021 IMPIANTI SPORTIVI CA' RAINATI dal 01/10/2020 al 31/12/2020;19-02-2021;530;0;103;1;Spese correnti;3;Acquisto di beni e servizi;2;Acquisto di servizi;5;Utenze e canoni;5;Acqua;19-02-2021;
231;1;0;"0,94";"90,67";ALTO TREVIGIANO SERVIZI S.R.L.;Z3F2BAC0F4;Fatt.n. 62202100000717 del 03/02/2021 Ex scuole Sopracastello dal 09/10/2020 al 31/12/2020;19-02-2021;561;2;100;1;Spese correnti;3;Acquisto di beni e servizi;2;Acquisto di servizi;5;Utenze e canoni;5;Acqua;19-02-2021;
231;2;0;"33,17";"90,67";ALTO TREVIGIANO SERVIZI S.R.L.;Z3F2BAC0F4;Fatt.n. 62202100000741 del 03/02/2021 Centro Polivalente La Roggia dal 08/10/2020 al 31/12/2020;19-02-2021;561;2;100;1;Spese correnti;3;Acquisto di beni e servizi;2;Acquisto di servizi;5;Utenze e canoni;5;Acqua;19-02-2021;
231;3;0;"56,56";"90,67";ALTO TREVIGIANO SERVIZI S.R.L.;Z3F2BAC0F4;Fatt.n. 62202100000743 del 03/02/2021 Centro Polivalente dal 08/10/2020 al 31/12/2020;19-02-2021;561;2;100;1;Spese correnti;3;Acquisto di beni e servizi;2;Acquisto di servizi;5;Utenze e canoni;5;Acqua;19-02-2021;
232;1;0;"196,13";"196,13";ALFA ANTINCENDIO S.R.L.;ZA5276F7AD;Fatt.n. 15 del 31/01/2021 MANUTENZIONE IMPIANTO ANTINCENDIO CENTRO POLIVALENTE LA ROGGIA;19-02-2021;311;2;127;1;Spese correnti;3;Acquisto di beni e servizi;2;Acquisto di servizi;13;Servizi ausiliari per il funzionamento dell'ente;999;Altri servizi ausiliari n.a.c.;19-02-2021;
233;1;0;"522,73";"522,73";ZEMA S.R.L.S.;Z9F2FFB99E;Fatt.n. 139/E del 30/01/2021 ACQUISTO PC PER UFFICI COMUNALI;19-02-2021;746;0;455;2;Spese in conto capitale;2;Investimenti fissi lordi e acquisto di terreni;1;Beni materiali;7;Hardware;2;Postazioni di lavoro;19-02-2021;
234;1;0;"1.000,00";"1.000,00";INFOTEAM SRL;ZD92A1EDE2;Fatt.n. 00000000200 del 31/01/2021 COMPONENTI  HARDWARE;19-02-2021;34;0;486;1;Spese correnti;3;Acquisto di beni e servizi;2;Acquisto di servizi;5;Utenze e canoni;999;Utenze e canoni per altri servizi n.a.c.;19-02-2021;
235;1;0;"1.438,20";"1.438,20";INFOTEAM SRL;ZD92A1EDE2;Fatt.n. 00000000200 del 31/01/2021 COMPONENTI  HARDWARE;19-02-2021;235;0;487;1;Spese correnti;3;Acquisto di beni e servizi;2;Acquisto di servizi;5;Utenze e canoni;999;Utenze e canoni per altri servizi n.a.c.;19-02-2021;
236;1;0;"450,00";"450,00";INFOTEAM SRL;ZD92A1EDE2;Fatt.n. 00000000200 del 31/01/2021 COMPONENTI  HARDWARE;19-02-2021;313;2;488;1;Spese correnti;3;Acquisto di beni e servizi;2;Acquisto di servizi;5;Utenze e canoni;999;Utenze e canoni per altri servizi n.a.c.;19-02-2021;
237;1;0;"109,70";"690,73";PLT PUREGREEN;7134285639;Fatt.n. 20210040000550 del 15/01/2021 FORNITURA ENERGIA ELETTRICA CIMITERO 01/11/20-31/12/20;19-02-2021;413;0;211;1;Spese correnti;3;Acquisto di beni e servizi;2;Acquisto di servizi;5;Utenze e canoni;4;Energia elettrica;19-02-2021;
237;2;0;"156,36";"690,73";PLT PUREGREEN;7134285639;Fatt.n. 20210040000548 del 15/01/2021 FORNITURA ENERGIA ELETTRICA CIMITERO 01/11/20 31/12/20;19-02-2021;413;0;211;1;Spese correnti;3;Acquisto di beni e servizi;2;Acquisto di servizi;5;Utenze e canoni;4;Energia elettrica;19-02-2021;
237;3;0;"188,78";"690,73";PLT PUREGREEN;7134285639;Fatt.n. 20210040000541 del 15/01/2021 FORNITURA ENERGIA ELETTRICA CIMITERO: 01/11/20-31/12/20;19-02-2021;413;0;211;1;Spese correnti;3;Acquisto di beni e servizi;2;Acquisto di servizi;5;Utenze e canoni;4;Energia elettrica;19-02-2021;
237;4;0;"235,89";"690,73";PLT PUREGREEN;7134285639;Fatt.n. 20210040000545 del 15/01/2021  ENERGIA ELETTRICA CIMITERO 01/08/20-31/12/20;19-02-2021;413;0;211;1;Spese correnti;3;Acquisto di beni e servizi;2;Acquisto di servizi;5;Utenze e canoni;4;Energia elettrica;19-02-2021;
238;1;0;"2.552,50";"2.552,50";STUDIO SMANIOTTO & MOROSIN;Z49292B1FC;Fatt.n. 7 del 02/02/2021 LAVORI DI EFFICIENTAMENTO TERMICO PLESSO SCOLASTICO - D.M. 16/02/2016 (CONTO TERMICO);19-02-2021;775;5;583;2;Spese in conto capitale;2;Investimenti fissi lordi e acquisto di terreni;3;Beni immateriali;5;Incarichi professionali per la realizzazione di investimenti;1;Incarichi professionali per la realizzazione di investimenti;19-02-2021;
239;1;0;"169,80";"169,80";OMESSO NOMINATIVO NEL RISPETTO DELLA NORMATIVA SULLA PROTEZIONE DATI PERSONALI; ;LIQUIDAZIONE UTENTE F. R. PASTI GENNAIO 20201 FT. 62/B DEL 04.02.2021 "CASA DI RIPOSO AITA";19-02-2021;576;0;431;1;Spese correnti;4;Trasferimenti correnti;2;Trasferimenti correnti a Famiglie;2;Interventi assistenziali;999;Altri assegni e sussidi assistenziali;19-02-2021;
240;1;0;"136,78";"136,78";OMESSO NOMINATIVO NEL RISPETTO DELLA NORMATIVA SULLA PROTEZIONE DATI PERSONALI; ;LIQUIDAZIONE UTENTE F. R. PASTI GENNAIO 20201 FT. 62/B DEL 04.02.2021 "CASA DI RIPOSO AITA";19-02-2021;576;0;431;1;Spese correnti;4;Trasferimenti correnti;2;Trasferimenti correnti a Famiglie;2;Interventi assistenziali;999;Altri assegni e sussidi assistenziali;19-02-2021;
241;1;0;"510,00";"510,00";CENTRO STUDI AMMINISTRATIVI DELLA M.T.; ;LIQUIDAZIONE QUOTE DI ADESIONE PER SERVIZI CONVENZIONATI.;19-02-2021;7;0;636;1;Spese correnti;3;Acquisto di beni e servizi;2;Acquisto di servizi;1;Organi e incarichi istituzionali dell'amministrazione;8;"Compensi agli organi istituzionali di revisione, di controllo ed altri incarichi istituzionali dell'amministrazione";19-02-2021;
242;1;0;"2.500,00";"2.500,00";CENTRO STUDI AMMINISTRATIVI DELLA M.T.; ;LIQUIDAZIONE QUOTE DI ADESIONE PER SERVIZI CONVENZIONATI.;19-02-2021;7;0;667;1;Spese correnti;3;Acquisto di beni e servizi;2;Acquisto di servizi;1;Organi e incarichi istituzionali dell'amministrazione;8;"Compensi agli organi istituzionali di revisione, di controllo ed altri incarichi istituzionali dell'amministrazione";19-02-2021;
243;1;0;"2.500,00";"2.500,00";CENTRO STUDI AMMINISTRATIVI DELLA M.T.; ;LIQUIDAZIONE QUOTE DI ADESIONE PER SERVIZI CONVENZIONATI.;19-02-2021;7;0;504;1;Spese correnti;3;Acquisto di beni e servizi;2;Acquisto di servizi;1;Organi e incarichi istituzionali dell'amministrazione;8;"Compensi agli organi istituzionali di revisione, di controllo ed altri incarichi istituzionali dell'amministrazione";19-02-2021;
244;1;0;"106,70";"106,70";OMESSO NOMINATIVO NEL RISPETTO DELLA NORMATIVA SULLA PROTEZIONE DATI PERSONALI; ;LIQUIDAZIONE UTENTE C. G. PER PASTI GENNAIO 2021 FT. 60/B DEL 04.02.2021 "CASA DI RIPOSO AITA";19-02-2021;576;0;34;1;Spese correnti;4;Trasferimenti correnti;2;Trasferimenti correnti a Famiglie;2;Interventi assistenziali;999;Altri assegni e sussidi assistenziali;19-02-2021;
245;1;0;"58,74";"58,74";OMESSO NOMINATIVO NEL RISPETTO DELLA NORMATIVA SULLA PROTEZIONE DATI PERSONALI; ;LIQUIDAZIONE UTENTE C. G. PER PASTI GENNAIO 2021 FT. 60/B DEL 04.02.2021 "CASA DI RIPOSO AITA";19-02-2021;576;0;90;1;Spese correnti;4;Trasferimenti correnti;2;Trasferimenti correnti a Famiglie;2;Interventi assistenziali;999;Altri assegni e sussidi assistenziali;19-02-2021;
246;1;0;"5.357,53";"5.357,53";CASA DI RIPOSO 'AITA'; ;Fatt.n. 89/C del 16/02/2021 PASTI MENSA SCUOLE - GENNAIO 2021;19-02-2021;274;1;472;1;Spese correnti;3;Acquisto di beni e servizi;2;Acquisto di servizi;15;Contratti di servizio pubblico;6;Contratti di servizio per le mense scolastiche;19-02-2021;
248;1;0;"215,66";"215,66";OMESSO NOMINATIVO NEL RISPETTO DELLA NORMATIVA SULLA PROTEZIONE DATI PERSONALI; ;LIQUIDAZIONE UTENTE C. G. FATTURA SERVIZIO ELETTRICO NAZIONALE N. FT. 263556805039018 DEL 08.02.2021 GEN. 2021-FEB. 2021;22-02-2021;576;0;34;1;Spese correnti;4;Trasferimenti correnti;2;Trasferimenti correnti a Famiglie;2;Interventi assistenziali;999;Altri assegni e sussidi assistenziali;22-02-2021;
249;1;0;"650,00";"650,00";COMUNE DI CASTELFRANCO VENETO; ;IMPEGNO DI SPESA PER VERSAMENTO QUOTA ANNUALE (SETTEMBRE 2019-SETTEMBRE 2020) AL POLO BIBLIOTECARIO DI CASTELFRANCO VENETO.;23-02-2021;306;1;356;1;Spese correnti;4;Trasferimenti correnti;1;Trasferimenti correnti a Amministrazioni Pubbliche;2;Trasferimenti correnti a Amministrazioni Locali;3;Trasferimenti correnti a Comuni;23-02-2021;
250;1;0;"4.920,94";"4.920,94";ASSOCIAZIONE IL CICLAMINO; ;LIQUIDAZIONE QUOTA DEL 5 PER MILLE ESERCIZIO FINANZIARIO 2019 - ANNO DIMPOSTA 2018.;23-02-2021;506;1;381;1;Spese correnti;4;Trasferimenti correnti;1;Trasferimenti correnti a Amministrazioni Pubbliche;4;Trasferimenti correnti a organismi interni e/o unità locali della amministrazione;1;Trasferimenti correnti a organismi interni e/o unità locali della amministrazione;23-02-2021;
251;1;0;"2.891,53";"2.891,53";BIM PIAVE NUOVE ENERGIE S.R.L.; ;IMPEGNO DI SPESA E LIQUIDAZIONE COSTI PER ADESIONE AL SERVIZIO UNIPASS ANNO 2020 AL CONSORZIO B.I.M. PIAVE DI TREVISO.;23-02-2021;651;0;392;1;Spese correnti;4;Trasferimenti correnti;1;Trasferimenti correnti a Amministrazioni Pubbliche;2;Trasferimenti correnti a Amministrazioni Locali;18;Trasferimenti correnti a Consorzi di enti locali;23-02-2021;
252;1;0;"7.637,20";"7.637,20";ACCATRE S.R.L.;ZA02B5B268;Fatt.n. 1/210175 del 05/02/2021 SERVIZI DRIVER DI CONSERVAZIONE E PORTALI WEB 2020-2022;24-02-2021;39;0;83;1;Spese correnti;3;Acquisto di beni e servizi;2;Acquisto di servizi;19;Servizi informatici e di telecomunicazioni;999;Altri servizi informatici e di telecomunicazioni n.a.c.;24-02-2021;
253;1;0;"7.021,00";"7.021,00";ACCATRE-STP S.R.L.;Z8F27CA996;Fatt.n. 95/1 del 19/01/2021 CONVENZIONE PER L'ANNO 2021 SERVIZIO PAGHE;24-02-2021;39;0;161;1;Spese correnti;3;Acquisto di beni e servizi;2;Acquisto di servizi;19;Servizi informatici e di telecomunicazioni;10;Servizi di consulenza e prestazioni professionali ICT;24-02-2021;
254;1;0;"2.685,32";"2.685,32";ACCATRE-STP S.R.L.;Z8F27CA996;Fatt.n. 95/1 del 19/01/2021 CONVENZIONE PER L'ANNO 2021 SERVIZIO PAGHE;24-02-2021;39;2;162;1;Spese correnti;3;Acquisto di beni e servizi;2;Acquisto di servizi;19;Servizi informatici e di telecomunicazioni;10;Servizi di consulenza e prestazioni professionali ICT;24-02-2021;
255;1;0;"70,76";"70,76";SICURITALIA IVRI S.P.A.;Z3827208DE;Fatt.n. 9117002427 del 15/02/2021 1 BIMESTRE 2021-COLLEGAMENTO CENTRALE OPERATIVA;24-02-2021;34;0;88;1;Spese correnti;3;Acquisto di beni e servizi;2;Acquisto di servizi;5;Utenze e canoni;999;Utenze e canoni per altri servizi n.a.c.;24-02-2021;
256;1;0;"42,70";"42,70";SICURITALIA IVRI S.P.A.;Z3827208DE;Fatt.n. 9117002427 del 15/02/2021 1 BIMESTRE 2021-COLLEGAMENTO CENTRALE OPERATIVA;24-02-2021;71;0;89;1;Spese correnti;3;Acquisto di beni e servizi;2;Acquisto di servizi;5;Utenze e canoni;999;Utenze e canoni per altri servizi n.a.c.;24-02-2021;
257;1;0;"141,52";"141,52";SICURITALIA IVRI S.P.A.;Z3827208DE;Fatt.n. 9117002427 del 15/02/2021 1 BIMESTRE 2021-COLLEGAMENTO CENTRALE OPERATIVA;24-02-2021;235;0;92;1;Spese correnti;3;Acquisto di beni e servizi;2;Acquisto di servizi;5;Utenze e canoni;999;Utenze e canoni per altri servizi n.a.c.;24-02-2021;
258;1;0;"141,52";"141,52";SICURITALIA IVRI S.P.A.;Z3827208DE;Fatt.n. 9117002427 del 15/02/2021 1 BIMESTRE 2021-COLLEGAMENTO CENTRALE OPERATIVA;24-02-2021;252;0;91;1;Spese correnti;3;Acquisto di beni e servizi;2;Acquisto di servizi;5;Utenze e canoni;999;Utenze e canoni per altri servizi n.a.c.;24-02-2021;
259;1;0;"85,40";"85,40";SICURITALIA IVRI S.P.A.;Z3827208DE;Fatt.n. 9117002427 del 15/02/2021 1 BIMESTRE 2021-COLLEGAMENTO CENTRALE OPERATIVA;24-02-2021;310;0;93;1;Spese correnti;3;Acquisto di beni e servizi;2;Acquisto di servizi;5;Utenze e canoni;999;Utenze e canoni per altri servizi n.a.c.;24-02-2021;
260;1;0;"42,70";"42,70";SICURITALIA IVRI S.P.A.;Z3827208DE;Fatt.n. 9117002427 del 15/02/2021 1 BIMESTRE 2021-COLLEGAMENTO CENTRALE OPERATIVA;24-02-2021;313;2;94;1;Spese correnti;3;Acquisto di beni e servizi;2;Acquisto di servizi;5;Utenze e canoni;999;Utenze e canoni per altri servizi n.a.c.;24-02-2021;
261;1;0;"42,70";"42,70";SICURITALIA IVRI S.P.A.;Z3827208DE;Fatt.n. 9117002427 del 15/02/2021 1 BIMESTRE 2021-COLLEGAMENTO CENTRALE OPERATIVA;24-02-2021;561;2;90;1;Spese correnti;3;Acquisto di beni e servizi;2;Acquisto di servizi;5;Utenze e canoni;999;Utenze e canoni per altri servizi n.a.c.;24-02-2021;
262;1;0;"629,52";"629,52";HALLEY VENETO SRL;Z4B2FF81A4;Fatt.n. 1/210119 del 18/01/2021 GIORNATA DI AVVIAMENTO PROCEDURA SERVIZI CIMITERIALI;24-02-2021;39;0;434;1;Spese correnti;3;Acquisto di beni e servizi;2;Acquisto di servizi;19;Servizi informatici e di telecomunicazioni;2;Assistenza all'utente e formazione;24-02-2021;
263;1;0;"573,40";"573,40";INFOTEAM SRL;Z2D3039B7B;Fatt.n. 00000000384 del 10/02/2021 RINNOVO LICENZE MDAEMON;24-02-2021;39;1;509;1;Spese correnti;3;Acquisto di beni e servizi;2;Acquisto di servizi;7;Utilizzo di beni di terzi;6;Licenze d'uso per software;24-02-2021;
265;1;0;"65,85";"65,85";OMESSO NOMINATIVO NEL RISPETTO DELLA NORMATIVA SULLA PROTEZIONE DATI PERSONALI; ;LIQUIDAZIONE UTENTE C.G. PER BOLLETTA N. 61202100071415 DEL 03.02.2021 ALTO TREVIGIANO SERVIZI.;01-03-2021;576;0;34;1;Spese correnti;4;Trasferimenti correnti;2;Trasferimenti correnti a Famiglie;2;Interventi assistenziali;999;Altri assegni e sussidi assistenziali;01-03-2021;
269;1;0;"250,00";"250,00";BARICHELLO ELEONORA; ;BORSA DI STUDIO COMUNALE.;02-03-2021;280;0;46;1;Spese correnti;4;Trasferimenti correnti;2;Trasferimenti correnti a Famiglie;3;"Borse di studio, dottorati di ricerca e contratti di formazione specialistica area medica";1;Borse di studio;02-03-2021;
270;1;0;"427,00";"427,00";ELA SISTEMI ELETTRONICI S.R.L.;Z3130B1479;Fatt.n. 3/PA del 26/02/2021 FORNITURA E SOSTITUZIONE MATERIALE IMPIANTO DI ALLARME;03-03-2021;313;1;37;1;Spese correnti;3;Acquisto di beni e servizi;2;Acquisto di servizi;9;Manutenzione ordinaria e riparazioni;4;Manutenzione ordinaria e riparazioni di impianti e macchinari;03-03-2021;
271;1;0;"17.378,83";"17.378,83";DALLA GASSA s.r.l.;Z0C2DBFF67;Fatt.n. 24/PA del 18/02/2021 FATTURA RELATIVA AD INTERVENTI DI SOMMA URGENZA E DI PROTEZIONE CIVILE IN CONSEGUENZA DEGLI ECCEZIONALI EVENTI METEREOLOGICI CHE HANNO COLPITO IL TERRITORIO COMUNALE: RIPRISTINO ARGINALE STRADALE DI VIA CASTELLARO;03-03-2021;1007;0;234;2;Spese in conto capitale;2;Investimenti fissi lordi e acquisto di terreni;1;Beni materiali;9;Beni immobili;12;Infrastrutture stradali;03-03-2021;
272;1;0;"201,15";"201,15";ASCOTRADE S.P.A.;Z342D086E5;Fatt.n. 500209945 del 19/02/2021 15350001039492 - MAGAZZINO COMUNALE DAL 16/12/2020 AL 15/02/2021;03-03-2021;71;0;171;1;Spese correnti;3;Acquisto di beni e servizi;2;Acquisto di servizi;5;Utenze e canoni;6;Gas;03-03-2021;
273;1;0;"942,87";"942,87";KYOCERA DOCUMENT SOLUTIONS ITALIA S.P.A.;ZF02648E30;Fatt.n. 1010668246 del 19/02/2021 CONTRATTO FOTOCOPIATRICI;03-03-2021;34;0;519;1;Spese correnti;3;Acquisto di beni e servizi;2;Acquisto di servizi;5;Utenze e canoni;999;Utenze e canoni per altri servizi n.a.c.;03-03-2021;
274;1;0;"411,59";"411,59";KYOCERA DOCUMENT SOLUTIONS ITALIA S.P.A.;ZF02648E30;Fatt.n. 1010668246 del 19/02/2021 CONTRATTO FOTOCOPIATRICI;03-03-2021;252;0;520;1;Spese correnti;3;Acquisto di beni e servizi;2;Acquisto di servizi;5;Utenze e canoni;999;Utenze e canoni per altri servizi n.a.c.;03-03-2021;
275;1;0;"305.000,00";"305.000,00";S.I.G. S.p.A.;8459306824;Fatt.n. 8 del 15/02/2021 RIASFALTATURA DI ALCUNE STRADE COMUNALI;03-03-2021;1007;0;351;2;Spese in conto capitale;2;Investimenti fissi lordi e acquisto di terreni;1;Beni materiali;9;Beni immobili;12;Infrastrutture stradali;03-03-2021;
276;1;0;"1.403,05";"1.403,05";BIM PIAVE NUOVE ENERGIE S.R.L.; ;Fatt.n. 9000045 del 15/02/2021 Anno termico 2020/2021 - acqua calda 01/07/2020-31/12/2020 - Sede Municipale;03-03-2021;34;0;116;1;Spese correnti;3;Acquisto di beni e servizi;2;Acquisto di servizi;5;Utenze e canoni;6;Gas;03-03-2021;
277;1;0;"1.311,23";"8.459,72";BIM PIAVE NUOVE ENERGIE S.R.L.; ;Fatt.n. 9000050 del 15/02/2021 Anno termico 2020/2021 - acqua calda 01/07/2020-31/12/2020 - Scuola Primaria Liedolo;03-03-2021;252;0;121;1;Spese correnti;3;Acquisto di beni e servizi;2;Acquisto di servizi;5;Utenze e canoni;6;Gas;03-03-2021;
277;2;0;"7.148,49";"8.459,72";BIM PIAVE NUOVE ENERGIE S.R.L.; ;Fatt.n. 9000049 del 15/02/2021 Anno termico 2020/2021 - acqua calda 01/07/2020-31/12/2020 - Scuola Secondaria/Primaria;03-03-2021;252;0;121;1;Spese correnti;3;Acquisto di beni e servizi;2;Acquisto di servizi;5;Utenze e canoni;6;Gas;03-03-2021;
278;1;0;"3.512,78";"3.512,78";BIM PIAVE NUOVE ENERGIE S.R.L.; ;Fatt.n. 9000047 del 15/02/2021 Anno termico 2020/2021 - acqua calda 01/07/2020-31/12/2020 - Villa Rubelli;03-03-2021;310;0;117;1;Spese correnti;3;Acquisto di beni e servizi;2;Acquisto di servizi;5;Utenze e canoni;6;Gas;03-03-2021;
279;1;0;"1.757,72";"5.750,95";BIM PIAVE NUOVE ENERGIE S.R.L.; ;Fatt.n. 9000051 del 15/02/2021 Anno termico 2020/2021 - acqua calda 01/07/2020-31/12/2020 - Scuola Primaria CA Rainati;03-03-2021;530;0;120;1;Spese correnti;3;Acquisto di beni e servizi;2;Acquisto di servizi;5;Utenze e canoni;6;Gas;03-03-2021;
279;2;0;"3.993,23";"5.750,95";BIM PIAVE NUOVE ENERGIE S.R.L.; ;Fatt.n. 9000052 del 15/02/2021 Anno termico 2020/2021 - acqua calda 01/07/2020-31/12/2020 - Palestra;03-03-2021;530;0;120;1;Spese correnti;3;Acquisto di beni e servizi;2;Acquisto di servizi;5;Utenze e canoni;6;Gas;03-03-2021;
280;1;0;"650,50";"2.228,29";BIM PIAVE NUOVE ENERGIE S.R.L.; ;Fatt.n. 9000046 del 15/02/2021 Anno termico 2020/2021 - acqua calda 01/07/2020-31/12/2020 - Ex Scuola Sopracastello;03-03-2021;561;2;118;1;Spese correnti;3;Acquisto di beni e servizi;2;Acquisto di servizi;5;Utenze e canoni;6;Gas;03-03-2021;
280;2;0;"1.577,79";"2.228,29";BIM PIAVE NUOVE ENERGIE S.R.L.; ;Fatt.n. 9000048 del 15/02/2021 Anno termico 2020/2021 - acqua calda 01/07/2020-31/12/2020 - Polivalente "La Roggia";03-03-2021;561;2;118;1;Spese correnti;3;Acquisto di beni e servizi;2;Acquisto di servizi;5;Utenze e canoni;6;Gas;03-03-2021;
281;1;0;"512,40";"512,40";TIM S.P.A.;ZE429271DF;Fatt.n. 4220421800003901 del 11/02/2021 FIBRE OTTICHE PER EDIFICI COMUNALI DAL 01/12/2020 AL 31/01/2021;03-03-2021;34;0;392;1;Spese correnti;3;Acquisto di beni e servizi;2;Acquisto di servizi;5;Utenze e canoni;999;Utenze e canoni per altri servizi n.a.c.;03-03-2021;
282;1;0;"176,20";"176,20";TIM S.P.A.;6930022311;Fatt.n. 7X00576553 del 11/02/2021 FATTURA TIM PER SIM RADIOMOBILI DAL 01/12/2020 AL 31/01/2021;03-03-2021;34;0;398;1;Spese correnti;3;Acquisto di beni e servizi;2;Acquisto di servizi;5;Utenze e canoni;999;Utenze e canoni per altri servizi n.a.c.;03-03-2021;
283;1;0;"54,30";"54,30";TIM S.P.A.;6930022311;Fatt.n. 7X00576553 del 11/02/2021 FATTURA TIM PER SIM RADIOMOBILI DAL 01/12/2020 AL 31/01/2021;03-03-2021;34;0;398;1;Spese correnti;3;Acquisto di beni e servizi;2;Acquisto di servizi;5;Utenze e canoni;999;Utenze e canoni per altri servizi n.a.c.;03-03-2021;
284;1;0;"204,96";"204,96";TIM S.P.A.;Z7F2E68750;Fatt.n. 4220421800003834 del 11/02/2021 FATTURA TIM SCUOLE CA' RAINATI DAL 01/12/2020 AL 31/01/2021;03-03-2021;235;0;307;1;Spese correnti;3;Acquisto di beni e servizi;2;Acquisto di servizi;5;Utenze e canoni;999;Utenze e canoni per altri servizi n.a.c.;03-03-2021;
285;1;0;"122,00";"122,00";TIM S.P.A.;ZE429271DF;Fatt.n. 4220421800003901 del 11/02/2021 FIBRE OTTICHE PER EDIFICI COMUNALI DAL 01/12/2020 AL 31/01/2021;03-03-2021;235;0;394;1;Spese correnti;3;Acquisto di beni e servizi;2;Acquisto di servizi;5;Utenze e canoni;999;Utenze e canoni per altri servizi n.a.c.;03-03-2021;
286;1;0;"122,00";"122,00";TIM S.P.A.;ZE429271DF;Fatt.n. 4220421800003901 del 11/02/2021 FIBRE OTTICHE PER EDIFICI COMUNALI DAL 01/12/2020 AL 31/01/2021;03-03-2021;252;0;393;1;Spese correnti;3;Acquisto di beni e servizi;2;Acquisto di servizi;5;Utenze e canoni;999;Utenze e canoni per altri servizi n.a.c.;03-03-2021;
287;1;0;"122,00";"122,00";TIM S.P.A.;ZE429271DF;Fatt.n. 4220421800003901 del 11/02/2021 FIBRE OTTICHE PER EDIFICI COMUNALI DAL 01/12/2020 AL 31/01/2021;03-03-2021;310;0;395;1;Spese correnti;3;Acquisto di beni e servizi;2;Acquisto di servizi;5;Utenze e canoni;999;Utenze e canoni per altri servizi n.a.c.;03-03-2021;
288;1;0;"122,00";"122,00";TIM S.P.A.;ZE429271DF;Fatt.n. 4220421800003901 del 11/02/2021 FIBRE OTTICHE PER EDIFICI COMUNALI DAL 01/12/2020 AL 31/01/2021;03-03-2021;311;0;396;1;Spese correnti;3;Acquisto di beni e servizi;2;Acquisto di servizi;5;Utenze e canoni;999;Utenze e canoni per altri servizi n.a.c.;03-03-2021;
289;1;0;"9,04";"9,04";MAXI DI SRL; ;Fatt.n. D38521999000031 del 19/02/2021 ACQUISTO BENI PER COVID PER EMERGENZA ALIMENTARE;03-03-2021;563;0;463;1;Spese correnti;3;Acquisto di beni e servizi;1;Acquisto di beni;2;Altri beni di consumo;11;Generi alimentari;03-03-2021;
290;1;0;"1.674,00";"1.674,00";CASA DI RIPOSO 'AITA'; ;Fatt.n. 88/B del 25/02/2021 PRESTAZIONI SOCIALI L.V. - GENNAIO 2021;03-03-2021;560;0;43;1;Spese correnti;3;Acquisto di beni e servizi;2;Acquisto di servizi;15;Contratti di servizio pubblico;8;Contratti di servizio di assistenza sociale residenziale e semiresidenziale;03-03-2021;
291;1;0;"1.966,64";"1.966,64";PILLON ANDREA;ZCA2A8A96D;Fatt.n. FPA 1/21 del 12/02/2021 PROGETTO E SISTEMAZIONE VIABILITA;03-03-2021;64;0;531;1;Spese correnti;3;Acquisto di beni e servizi;2;Acquisto di servizi;11;Prestazioni professionali e specialistiche;999;Altre prestazioni professionali e specialistiche n.a.c.;03-03-2021;
292;1;0;"13.115,00";"13.115,00";INFOTEAM SRL;Z9B300CEFE;Fatt.n. 00000000118 del 30/01/2021 ACQUISTO MATERIALE HARDWARE PER GLI UFFICI COMUNALI;03-03-2021;746;0;448;2;Spese in conto capitale;2;Investimenti fissi lordi e acquisto di terreni;1;Beni materiali;7;Hardware;2;Postazioni di lavoro;03-03-2021;
293;1;0;"20,00";"20,00";CENTRO STUDI BELLUNESE;ZA630ADFB0;Fatt.n. 40 del 15/01/2021 WEBINAR PER UFFICIO ALLA PERSONA;03-03-2021;552;0;32;1;Spese correnti;3;Acquisto di beni e servizi;2;Acquisto di servizi;4;Acquisto di servizi per formazione e addestramento del personale dell'ente;4;Acquisto di servizi per formazione obbligatoria;03-03-2021;
294;1;0;"8.250,00";"8.250,00";COSTRUZIONI VIRAGO S.N.C.;7962522106;Fatt.n. 2/PA del 15/02/2021 EFFICIENTAMENTO TERMICO SCUOLE;04-03-2021;779;0;288;2;Spese in conto capitale;2;Investimenti fissi lordi e acquisto di terreni;1;Beni materiali;9;Beni immobili;3;Fabbricati ad uso scolastico;04-03-2021;
295;1;0;"20.131,74";"20.131,74";PLT PUREGREEN;7134285639;Fatt.n. 20210040000543 del 15/01/2021 FORNITURA ENERGIA ELETTRICA PUBBLICA 01/11/20-31/12/20;04-03-2021;600;0;216;1;Spese correnti;3;Acquisto di beni e servizi;2;Acquisto di servizi;5;Utenze e canoni;4;Energia elettrica;04-03-2021;
296;1;0;"23.000,00";"23.000,00";SARTOR LIVIO;ZB6270B44A;Fatt.n. 3/A del 26/02/2021 STUDIO DI MICROZONAZIONE SISMICA DI 1Â° LIVELLO E CLE;05-03-2021;1010;0;66;2;Spese in conto capitale;2;Investimenti fissi lordi e acquisto di terreni;3;Beni immateriali;5;Incarichi professionali per la realizzazione di investimenti;1;Incarichi professionali per la realizzazione di investimenti;05-03-2021;
297;1;0;"50,00";"50,00";KAIROSFORMA SRL IMPRESA SOCIALE;ZC3306490F;Fatt.n. 2/43 del 23/02/2021 WEBINAR 19/02/2021;05-03-2021;67;0;24;1;Spese correnti;3;Acquisto di beni e servizi;2;Acquisto di servizi;4;Acquisto di servizi per formazione e addestramento del personale dell'ente;4;Acquisto di servizi per formazione obbligatoria;05-03-2021;
298;1;0;"834,48";"834,48";VIRA S.R.L.;Z073088FC5;Fatt.n. 9 del 23/02/2021 ACQUISTO MATERIALE PER UFFICI COMUNALI;05-03-2021;37;0;25;1;Spese correnti;3;Acquisto di beni e servizi;1;Acquisto di beni;2;Altri beni di consumo;1;"Carta, cancelleria e stampati";05-03-2021;
299;1;0;"585,54";"585,54";A.S. DI ANDREATTA GIUSEPPE & C. S.R.L.;Z162D6230A;Fatt.n. 170 del 28/02/2021 MANUTENZIONE IMPIANTI PUBBLICA ILLUMINAZIONE;05-03-2021;601;0;191;1;Spese correnti;3;Acquisto di beni e servizi;2;Acquisto di servizi;15;Contratti di servizio pubblico;15;Contratti di servizio per l'illuminazione pubblica;05-03-2021;
300;1;0;"7.675,76";"7.675,76";A.S. DI ANDREATTA GIUSEPPE & C. S.R.L.;Z04300D84C;Fatt.n. 171 del 28/02/2021 OPERE ELETTRICHE PER TRASFERIMENTO SEDE COMUNALE;05-03-2021;745;0;456;2;Spese in conto capitale;2;Investimenti fissi lordi e acquisto di terreni;1;Beni materiali;9;Beni immobili;19;Fabbricati ad uso strumentale;05-03-2021;
301;1;0;"237,60";"237,60";BELLNET INTERNATIONAL S.R.L.;Z752BFBD5F;Fatt.n. FATTPA 437_21 del 28/02/2021 TRAFFICO TELEFONICO LOCALE - MARZO 2021;05-03-2021;34;0;58;1;Spese correnti;3;Acquisto di beni e servizi;2;Acquisto di servizi;5;Utenze e canoni;1;Telefonia fissa;05-03-2021;
302;1;0;"28,06";"28,06";SICURITALIA IVRI S.P.A.;Z3827208DE;Fatt.n. 9117002952 del 28/02/2021 SERVIZI ISPETTIVI;05-03-2021;235;0;171;1;Spese correnti;3;Acquisto di beni e servizi;2;Acquisto di servizi;5;Utenze e canoni;999;Utenze e canoni per altri servizi n.a.c.;05-03-2021;
303;1;0;"223,38";"223,38";PLT PUREGREEN;7134285639;Fatt.n. 20210040000917 del 12/02/2021 FORNITURA ENERGIA ELETTRICA-GENNAIO 2021;05-03-2021;34;0;207;1;Spese correnti;3;Acquisto di beni e servizi;2;Acquisto di servizi;5;Utenze e canoni;4;Energia elettrica;05-03-2021;
304;1;0;"126,14";"126,14";PLT PUREGREEN;7134285639;Fatt.n. 20210040000911 del 12/02/2021 FORNITURA ENERGIA ELETTRICA - GENNAIO 2021;05-03-2021;71;0;208;1;Spese correnti;3;Acquisto di beni e servizi;2;Acquisto di servizi;5;Utenze e canoni;4;Energia elettrica;05-03-2021;
305;1;0;"229,89";"506,78";PLT PUREGREEN;7134285639;Fatt.n. 20210040000922 del 12/02/2021 FORNITURA ENERGIA ELETTRICA - GENNAIO 2021;05-03-2021;235;0;209;1;Spese correnti;3;Acquisto di beni e servizi;2;Acquisto di servizi;5;Utenze e canoni;4;Energia elettrica;05-03-2021;
305;2;0;"276,89";"506,78";PLT PUREGREEN;7134285639;Fatt.n. 20210040000918 del 12/02/2021 FORNITURA ENERGIA ELETTRICA - GENNAIO 2021;05-03-2021;235;0;209;1;Spese correnti;3;Acquisto di beni e servizi;2;Acquisto di servizi;5;Utenze e canoni;4;Energia elettrica;05-03-2021;
306;1;0;"1.557,94";"1.557,94";PLT PUREGREEN;7134285639;Fatt.n. 20210040000920 del 12/02/2021 FORNITURA ENERGIA ELETTRICA - GENNAIO 2021;05-03-2021;252;0;210;1;Spese correnti;3;Acquisto di beni e servizi;2;Acquisto di servizi;5;Utenze e canoni;4;Energia elettrica;05-03-2021;
307;1;0;"680,16";"680,16";PLT PUREGREEN;7134285639;Fatt.n. 20210040000909 del 12/02/2021 FORNITURA ENERGIA ELETTRICA - GENNAIO 2021;05-03-2021;310;0;212;1;Spese correnti;3;Acquisto di beni e servizi;2;Acquisto di servizi;5;Utenze e canoni;4;Energia elettrica;05-03-2021;
308;1;0;"60,45";"350,30";PLT PUREGREEN;7134285639;Fatt.n. 20210040000921 del 12/02/2021 FORNITURA ENERGIA ELETTRICA- GENNAIO 2021;05-03-2021;413;0;211;1;Spese correnti;3;Acquisto di beni e servizi;2;Acquisto di servizi;5;Utenze e canoni;4;Energia elettrica;05-03-2021;
308;2;0;"74,25";"350,30";PLT PUREGREEN;7134285639;Fatt.n. 20210040000919 del 12/02/2021 FORNITURA ENERGIA ELETTRICA - GENNAIO 2021;05-03-2021;413;0;211;1;Spese correnti;3;Acquisto di beni e servizi;2;Acquisto di servizi;5;Utenze e canoni;4;Energia elettrica;05-03-2021;
308;3;0;"95,18";"350,30";PLT PUREGREEN;7134285639;Fatt.n. 20210040000912 del 12/02/2021 FORNITURA ENERGIA ELETTRICA - GENNAIO 2021;05-03-2021;413;0;211;1;Spese correnti;3;Acquisto di beni e servizi;2;Acquisto di servizi;5;Utenze e canoni;4;Energia elettrica;05-03-2021;
308;4;0;"120,42";"350,30";PLT PUREGREEN;7134285639;Fatt.n. 20210040000916 del 12/02/2021 FORNITURA ENERGIA ELETTRICA - GENNAIO 2021;05-03-2021;413;0;211;1;Spese correnti;3;Acquisto di beni e servizi;2;Acquisto di servizi;5;Utenze e canoni;4;Energia elettrica;05-03-2021;
309;1;0;"257,68";"1.294,71";PLT PUREGREEN;7134285639;Fatt.n. 20210040000913 del 12/02/2021 FORNITURA ENERGIA ELETTRICA- GENNAIO 2021;05-03-2021;530;0;214;1;Spese correnti;3;Acquisto di beni e servizi;2;Acquisto di servizi;5;Utenze e canoni;4;Energia elettrica;05-03-2021;
309;2;0;"1.037,03";"1.294,71";PLT PUREGREEN;7134285639;Fatt.n. 20210040000910 del 12/02/2021 FORNITURA ENERGIA ELETTRICA - GENNAIO 2021;05-03-2021;530;0;214;1;Spese correnti;3;Acquisto di beni e servizi;2;Acquisto di servizi;5;Utenze e canoni;4;Energia elettrica;05-03-2021;
310;1;0;"110,72";"607,21";PLT PUREGREEN;7134285639;Fatt.n. 20210040000915 del 12/02/2021 FORNITURA ENERGIA ELETTRICA - GENNAIO 2021;05-03-2021;561;2;215;1;Spese correnti;3;Acquisto di beni e servizi;2;Acquisto di servizi;5;Utenze e canoni;4;Energia elettrica;05-03-2021;
310;2;0;"496,49";"607,21";PLT PUREGREEN;7134285639;Fatt.n. 20210040000923 del 12/02/2021 FORNITURA ENERGIA ELETTRICA - GENNAIO 2021;05-03-2021;561;2;215;1;Spese correnti;3;Acquisto di beni e servizi;2;Acquisto di servizi;5;Utenze e canoni;4;Energia elettrica;05-03-2021;
311;1;0;"0,40";"2.361,66";ALTO TREVIGIANO SERVIZI S.R.L.;Z3F2BAC0F4;Fatt.n. 62202100000734 del 03/02/2021 Fontana Via Dei Masi dal 04/10/2020 al 31/12/2020;05-03-2021;252;0;104;1;Spese correnti;3;Acquisto di beni e servizi;2;Acquisto di servizi;5;Utenze e canoni;5;Acqua;05-03-2021;
311;2;0;"0,50";"2.361,66";ALTO TREVIGIANO SERVIZI S.R.L.;Z3F2BAC0F4;Fatt.n. 62202100000736 del 03/02/2021 Area verde Via Monte Pasubio dal 02/10/2020 al 31/12/2020;05-03-2021;252;0;104;1;Spese correnti;3;Acquisto di beni e servizi;2;Acquisto di servizi;5;Utenze e canoni;5;Acqua;05-03-2021;
311;3;0;"6,63";"2.361,66";ALTO TREVIGIANO SERVIZI S.R.L.;Z3F2BAC0F4;Fatt.n. 62202100000721 del 03/02/2021 Fontana Via Roma dal 01/10/2020 al 31/12/2020;05-03-2021;252;0;104;1;Spese correnti;3;Acquisto di beni e servizi;2;Acquisto di servizi;5;Utenze e canoni;5;Acqua;05-03-2021;
311;4;0;"7,46";"2.361,66";ALTO TREVIGIANO SERVIZI S.R.L.;Z3F2BAC0F4;Fatt.n. 62202100000720 del 03/02/2021 Fontana Via S. Lorenzo dal 06/10/2020 al 31/12/2020;05-03-2021;252;0;104;1;Spese correnti;3;Acquisto di beni e servizi;2;Acquisto di servizi;5;Utenze e canoni;5;Acqua;05-03-2021;
311;5;0;"8,31";"2.361,66";ALTO TREVIGIANO SERVIZI S.R.L.;Z3F2BAC0F4;Fatt.n. 62202100000737 del 03/02/2021 Fontana Via S. Daniele dal 09/10/2020 al 31/12/2020;05-03-2021;252;0;104;1;Spese correnti;3;Acquisto di beni e servizi;2;Acquisto di servizi;5;Utenze e canoni;5;Acqua;05-03-2021;
311;6;0;"8,56";"2.361,66";ALTO TREVIGIANO SERVIZI S.R.L.;Z3F2BAC0F4;Fatt.n. 62202100000744 del 03/02/2021 Fontana Via D.C. Bernardi dal 01/10/2020 al 31/12/2020;05-03-2021;252;0;104;1;Spese correnti;3;Acquisto di beni e servizi;2;Acquisto di servizi;5;Utenze e canoni;5;Acqua;05-03-2021;
311;7;0;"9,94";"2.361,66";ALTO TREVIGIANO SERVIZI S.R.L.;Z3F2BAC0F4;Fatt.n. 62202100000719 del 03/02/2021 Via Marconi dal 08/10/2020 al 31/12/2020;05-03-2021;252;0;104;1;Spese correnti;3;Acquisto di beni e servizi;2;Acquisto di servizi;5;Utenze e canoni;5;Acqua;05-03-2021;
311;8;0;"10,31";"2.361,66";ALTO TREVIGIANO SERVIZI S.R.L.;Z3F2BAC0F4;Fatt.n. 62202100000722 del 03/02/2021 Fontana Via Teresa Rubelli dal 09/10/2020 al 31/12/2020;05-03-2021;252;0;104;1;Spese correnti;3;Acquisto di beni e servizi;2;Acquisto di servizi;5;Utenze e canoni;5;Acqua;05-03-2021;
311;9;0;"13,83";"2.361,66";ALTO TREVIGIANO SERVIZI S.R.L.;Z3F2BAC0F4;Fatt.n. 62202100000733 del 03/02/2021 Cimitero Liedolo dal 06/10/2020 al 31/12/2020;05-03-2021;252;0;104;1;Spese correnti;3;Acquisto di beni e servizi;2;Acquisto di servizi;5;Utenze e canoni;5;Acqua;05-03-2021;
311;10;0;"24,66";"2.361,66";ALTO TREVIGIANO SERVIZI S.R.L.;Z3F2BAC0F4;Fatt.n. 62202100000726 del 03/02/2021 Cimitero Ca' Rainati dal 01/10/2020 al 31/12/2020;05-03-2021;252;0;104;1;Spese correnti;3;Acquisto di beni e servizi;2;Acquisto di servizi;5;Utenze e canoni;5;Acqua;05-03-2021;
311;11;0;"36,30";"2.361,66";ALTO TREVIGIANO SERVIZI S.R.L.;Z3F2BAC0F4;Fatt.n. 62202100000735 del 03/02/2021 Fontana Via Risorgimento dal 01/10/2020 al 31/12/2020;05-03-2021;252;0;104;1;Spese correnti;3;Acquisto di beni e servizi;2;Acquisto di servizi;5;Utenze e canoni;5;Acqua;05-03-2021;
311;12;0;"45,86";"2.361,66";ALTO TREVIGIANO SERVIZI S.R.L.;Z3F2BAC0F4;Fatt.n. 62202100000724 del 03/02/2021 Cimitero capoluogo dal 01/10/2020 al 31/12/2020;05-03-2021;252;0;104;1;Spese correnti;3;Acquisto di beni e servizi;2;Acquisto di servizi;5;Utenze e canoni;5;Acqua;05-03-2021;
311;13;0;"59,62";"2.361,66";ALTO TREVIGIANO SERVIZI S.R.L.;Z3F2BAC0F4;Fatt.n. 62202100000742 del 03/02/2021 FONTANA VIA ROMA dal 01/10/2020 al 31/12/2020;05-03-2021;252;0;104;1;Spese correnti;3;Acquisto di beni e servizi;2;Acquisto di servizi;5;Utenze e canoni;5;Acqua;05-03-2021;
311;14;0;"107,69";"2.361,66";ALTO TREVIGIANO SERVIZI S.R.L.;Z3F2BAC0F4;Fatt.n. 62202100000739 del 03/02/2021 Antincendio scuola C Rainati dal 01/10/2020 al 31/12/2020;05-03-2021;252;0;104;1;Spese correnti;3;Acquisto di beni e servizi;2;Acquisto di servizi;5;Utenze e canoni;5;Acqua;05-03-2021;
311;15;0;"201,93";"2.361,66";ALTO TREVIGIANO SERVIZI S.R.L.;Z3F2BAC0F4;Fatt.n. 62202100000738 del 03/02/2021 Scuola elementareC Rainati dal 01/10/2020 al 31/12/2020;05-03-2021;252;0;104;1;Spese correnti;3;Acquisto di beni e servizi;2;Acquisto di servizi;5;Utenze e canoni;5;Acqua;05-03-2021;
311;16;0;"222,90";"2.361,66";ALTO TREVIGIANO SERVIZI S.R.L.;Z3F2BAC0F4;Fatt.n. 62202100000729 del 03/02/2021 Scuola elementare Liedolo dal 01/10/2020 al 31/12/2020;05-03-2021;252;0;104;1;Spese correnti;3;Acquisto di beni e servizi;2;Acquisto di servizi;5;Utenze e canoni;5;Acqua;05-03-2021;
311;17;0;"419,94";"2.361,66";ALTO TREVIGIANO SERVIZI S.R.L.;Z3F2BAC0F4;Fatt.n. 62202100000728 del 03/02/2021 FONTANA VIA ROMA dal 01/10/2020 al 31/12/2020;05-03-2021;252;0;104;1;Spese correnti;3;Acquisto di beni e servizi;2;Acquisto di servizi;5;Utenze e canoni;5;Acqua;05-03-2021;
311;18;0;"1.176,82";"2.361,66";ALTO TREVIGIANO SERVIZI S.R.L.;Z3F2BAC0F4;Fatt.n. 62202100000732 del 03/02/2021 Scuole elementari capoluogo dal 01/10/2020 al 31/12/2020;05-03-2021;252;0;104;1;Spese correnti;3;Acquisto di beni e servizi;2;Acquisto di servizi;5;Utenze e canoni;5;Acqua;05-03-2021;
312;1;0;"42,70";"42,70";OMESSO NOMINATIVO NEL RISPETTO DELLA NORMATIVA SULLA PROTEZIONE DATI PERSONALI; ;LIQUIDAZIONE UTENTE C.G. PER PASTI A DOMICILIO FEBBRAIO 2021 CASA DI RIPOSO "AITA" FT. N. 107/B DEL 04.03.2021;09-03-2021;576;0;34;1;Spese correnti;4;Trasferimenti correnti;2;Trasferimenti correnti a Famiglie;2;Interventi assistenziali;999;Altri assegni e sussidi assistenziali;09-03-2021;
313;1;0;"296,06";"296,06";OMESSO NOMINATIVO NEL RISPETTO DELLA NORMATIVA SULLA PROTEZIONE DATI PERSONALI; ;LIQUIDAZIONE UTENTE F.V. PER PASTI A DOMICILIO FEBBRAIO 2021 CASA DI RIPOSO "AITA" FT. N. 107/B DEL 04.03.2021;09-03-2021;576;0;431;1;Spese correnti;4;Trasferimenti correnti;2;Trasferimenti correnti a Famiglie;2;Interventi assistenziali;999;Altri assegni e sussidi assistenziali;09-03-2021;
314;1;0;"466,65";"466,65";BIM PIAVE NUOVE ENERGIE S.R.L.; ;SALDO Fatt.n. 9000044  del 15/02/2021 Anno termico 2020/2021 - Acconto competenze per  manutenzione e controllo dell'impianto termico comunale;10-03-2021;34;0;116;1;Spese correnti;3;Acquisto di beni e servizi;2;Acquisto di servizi;5;Utenze e canoni;6;Gas;10-03-2021;
315;1;0;"1.000,00";"32.000,00";ALBERTON FERRAMENTA E CASALINGHI SNC DI ALBERTON P.& C.; ;OSTEGNO ALLE ATTIVITA ECONOMICHE DANNEGGIATE DALL EMERGENZA SANITARIA DA COVID-19 - EROGAZIONE CONTRIBUTO.;15-03-2021;630;0;471;1;Spese correnti;4;Trasferimenti correnti;3;Trasferimenti correnti a Imprese;99;Trasferimenti correnti a altre imprese;999;Trasferimenti correnti a altre imprese;15-03-2021;
315;2;0;"1.000,00";"32.000,00";ALE PARRUCHIERI GLAMOUR; ;OSTEGNO ALLE ATTIVITA ECONOMICHE DANNEGGIATE DALL EMERGENZA SANITARIA DA COVID-19 - EROGAZIONE CONTRIBUTO.;15-03-2021;630;0;471;1;Spese correnti;4;Trasferimenti correnti;3;Trasferimenti correnti a Imprese;99;Trasferimenti correnti a altre imprese;999;Trasferimenti correnti a altre imprese;15-03-2021;
315;3;0;"1.000,00";"32.000,00";BAR "AL GIRASOLE" DI BAGGIO ORFEO; ;OSTEGNO ALLE ATTIVITA ECONOMICHE DANNEGGIATE DALL EMERGENZA SANITARIA DA COVID-19 - EROGAZIONE CONTRIBUTO.;15-03-2021;630;0;471;1;Spese correnti;4;Trasferimenti correnti;3;Trasferimenti correnti a Imprese;99;Trasferimenti correnti a altre imprese;999;Trasferimenti correnti a altre imprese;15-03-2021;
315;4;0;"1.000,00";"32.000,00";BAR CENTRALE DI DE MARCHI GRAZIELLA & C.SNC; ;OSTEGNO ALLE ATTIVITA ECONOMICHE DANNEGGIATE DALL EMERGENZA SANITARIA DA COVID-19 - EROGAZIONE CONTRIBUTO.;15-03-2021;630;0;471;1;Spese correnti;4;Trasferimenti correnti;3;Trasferimenti correnti a Imprese;99;Trasferimenti correnti a altre imprese;999;Trasferimenti correnti a altre imprese;15-03-2021;
315;5;0;"1.000,00";"32.000,00";BAR SAN MARTINO di Tasca Michela; ;OSTEGNO ALLE ATTIVITA ECONOMICHE DANNEGGIATE DALL EMERGENZA SANITARIA DA COVID-19 - EROGAZIONE CONTRIBUTO.;15-03-2021;630;0;471;1;Spese correnti;4;Trasferimenti correnti;3;Trasferimenti correnti a Imprese;99;Trasferimenti correnti a altre imprese;999;Trasferimenti correnti a altre imprese;15-03-2021;
315;6;0;"1.000,00";"32.000,00";BERGAMIN ARCHIMEDE; ;OSTEGNO ALLE ATTIVITA ECONOMICHE DANNEGGIATE DALL EMERGENZA SANITARIA DA COVID-19 - EROGAZIONE CONTRIBUTO.;15-03-2021;630;0;471;1;Spese correnti;4;Trasferimenti correnti;3;Trasferimenti correnti a Imprese;99;Trasferimenti correnti a altre imprese;999;Trasferimenti correnti a altre imprese;15-03-2021;
315;7;0;"1.000,00";"32.000,00";CANOVA TOUR DI REBESCO LUCA; ;OSTEGNO ALLE ATTIVITA ECONOMICHE DANNEGGIATE DALL EMERGENZA SANITARIA DA COVID-19 - EROGAZIONE CONTRIBUTO.;15-03-2021;630;0;471;1;Spese correnti;4;Trasferimenti correnti;3;Trasferimenti correnti a Imprese;99;Trasferimenti correnti a altre imprese;999;Trasferimenti correnti a altre imprese;15-03-2021;
315;8;0;"1.000,00";"32.000,00";CREATIVANIA DI BOF VANIA; ;OSTEGNO ALLE ATTIVITA ECONOMICHE DANNEGGIATE DALL EMERGENZA SANITARIA DA COVID-19 - EROGAZIONE CONTRIBUTO.;15-03-2021;630;0;471;1;Spese correnti;4;Trasferimenti correnti;3;Trasferimenti correnti a Imprese;99;Trasferimenti correnti a altre imprese;999;Trasferimenti correnti a altre imprese;15-03-2021;
315;9;0;"1.000,00";"32.000,00";EGO ESTETICA E SOLARIUM DI LORO JENNIE; ;OSTEGNO ALLE ATTIVITA ECONOMICHE DANNEGGIATE DALL EMERGENZA SANITARIA DA COVID-19 - EROGAZIONE CONTRIBUTO.;15-03-2021;630;0;471;1;Spese correnti;4;Trasferimenti correnti;3;Trasferimenti correnti a Imprese;99;Trasferimenti correnti a altre imprese;999;Trasferimenti correnti a altre imprese;15-03-2021;
315;10;0;"1.000,00";"32.000,00";ESTETICA MIRASOL DI BERTUCCI GIORGIA; ;OSTEGNO ALLE ATTIVITA ECONOMICHE DANNEGGIATE DALL EMERGENZA SANITARIA DA COVID-19 - EROGAZIONE CONTRIBUTO.;15-03-2021;630;0;471;1;Spese correnti;4;Trasferimenti correnti;3;Trasferimenti correnti a Imprese;99;Trasferimenti correnti a altre imprese;999;Trasferimenti correnti a altre imprese;15-03-2021;
315;11;0;"1.000,00";"32.000,00";EUROMODA DI BAZZACCO FABRIZIO; ;OSTEGNO ALLE ATTIVITA ECONOMICHE DANNEGGIATE DALL EMERGENZA SANITARIA DA COVID-19 - EROGAZIONE CONTRIBUTO.;15-03-2021;630;0;471;1;Spese correnti;4;Trasferimenti correnti;3;Trasferimenti correnti a Imprese;99;Trasferimenti correnti a altre imprese;999;Trasferimenti correnti a altre imprese;15-03-2021;
315;12;0;"1.000,00";"32.000,00";F.LLI MASARO DI MASARO WALTER & LUCA S.N.C.; ;OSTEGNO ALLE ATTIVITA ECONOMICHE DANNEGGIATE DALL EMERGENZA SANITARIA DA COVID-19 - EROGAZIONE CONTRIBUTO.;15-03-2021;630;0;471;1;Spese correnti;4;Trasferimenti correnti;3;Trasferimenti correnti a Imprese;99;Trasferimenti correnti a altre imprese;999;Trasferimenti correnti a altre imprese;15-03-2021;
315;13;0;"1.000,00";"32.000,00";GELATERIA DO RE MI DI GAGLIARDINO CARLA; ;OSTEGNO ALLE ATTIVITA ECONOMICHE DANNEGGIATE DALL EMERGENZA SANITARIA DA COVID-19 - EROGAZIONE CONTRIBUTO.;15-03-2021;630;0;471;1;Spese correnti;4;Trasferimenti correnti;3;Trasferimenti correnti a Imprese;99;Trasferimenti correnti a altre imprese;999;Trasferimenti correnti a altre imprese;15-03-2021;
315;14;0;"1.000,00";"32.000,00";GELATERIA LA PRIMULA DI CASSOL MAURO; ;OSTEGNO ALLE ATTIVITA ECONOMICHE DANNEGGIATE DALL EMERGENZA SANITARIA DA COVID-19 - EROGAZIONE CONTRIBUTO.;15-03-2021;630;0;471;1;Spese correnti;4;Trasferimenti correnti;3;Trasferimenti correnti a Imprese;99;Trasferimenti correnti a altre imprese;999;Trasferimenti correnti a altre imprese;15-03-2021;
315;15;0;"1.000,00";"32.000,00";GOLOSE EMOZIONI S.N.C. di Enrico Tedesco & C.; ;OSTEGNO ALLE ATTIVITA ECONOMICHE DANNEGGIATE DALL EMERGENZA SANITARIA DA COVID-19 - EROGAZIONE CONTRIBUTO.;15-03-2021;630;0;471;1;Spese correnti;4;Trasferimenti correnti;3;Trasferimenti correnti a Imprese;99;Trasferimenti correnti a altre imprese;999;Trasferimenti correnti a altre imprese;15-03-2021;
315;16;0;"1.000,00";"32.000,00";I GNESOTTO PARRUCCHIERI DI GNESOTTO ROBERTO & C. S.A.S.; ;OSTEGNO ALLE ATTIVITA ECONOMICHE DANNEGGIATE DALL EMERGENZA SANITARIA DA COVID-19 - EROGAZIONE CONTRIBUTO.;15-03-2021;630;0;471;1;Spese correnti;4;Trasferimenti correnti;3;Trasferimenti correnti a Imprese;99;Trasferimenti correnti a altre imprese;999;Trasferimenti correnti a altre imprese;15-03-2021;
315;17;0;"1.000,00";"32.000,00";IDEA CAPELLI DI MAROSTICA SERGIO; ;OSTEGNO ALLE ATTIVITA ECONOMICHE DANNEGGIATE DALL EMERGENZA SANITARIA DA COVID-19 - EROGAZIONE CONTRIBUTO.;15-03-2021;630;0;471;1;Spese correnti;4;Trasferimenti correnti;3;Trasferimenti correnti a Imprese;99;Trasferimenti correnti a altre imprese;999;Trasferimenti correnti a altre imprese;15-03-2021;
315;18;0;"1.000,00";"32.000,00";IDEA DONNA DI IVANA BRADARIC; ;OSTEGNO ALLE ATTIVITA ECONOMICHE DANNEGGIATE DALL EMERGENZA SANITARIA DA COVID-19 - EROGAZIONE CONTRIBUTO.;15-03-2021;630;0;471;1;Spese correnti;4;Trasferimenti correnti;3;Trasferimenti correnti a Imprese;99;Trasferimenti correnti a altre imprese;999;Trasferimenti correnti a altre imprese;15-03-2021;
315;19;0;"1.000,00";"32.000,00";IL GELATONE DI BARBARA ROSSETTO; ;OSTEGNO ALLE ATTIVITA ECONOMICHE DANNEGGIATE DALL EMERGENZA SANITARIA DA COVID-19 - EROGAZIONE CONTRIBUTO.;15-03-2021;630;0;471;1;Spese correnti;4;Trasferimenti correnti;3;Trasferimenti correnti a Imprese;99;Trasferimenti correnti a altre imprese;999;Trasferimenti correnti a altre imprese;15-03-2021;
315;20;0;"1.000,00";"32.000,00";IMMAGINE SARAK  DI CECCATO SARAK; ;OSTEGNO ALLE ATTIVITA ECONOMICHE DANNEGGIATE DALL EMERGENZA SANITARIA DA COVID-19 - EROGAZIONE CONTRIBUTO.;15-03-2021;630;0;471;1;Spese correnti;4;Trasferimenti correnti;3;Trasferimenti correnti a Imprese;99;Trasferimenti correnti a altre imprese;999;Trasferimenti correnti a altre imprese;15-03-2021;
315;21;0;"1.000,00";"32.000,00";INFINITO BENESSERE DI PAROLIN SONIA; ;SOSTEGNO ALLE ATTIVITA ECONOMICHE DANNEGGIATE DALL EMERGENZA SANITARIA DA COVID-19 - EROGAZIONE CONTRIBUTO.;15-03-2021;630;0;471;1;Spese correnti;4;Trasferimenti correnti;3;Trasferimenti correnti a Imprese;99;Trasferimenti correnti a altre imprese;999;Trasferimenti correnti a altre imprese;15-03-2021;
315;22;0;"1.000,00";"32.000,00";LN DELICATA MENTE CAPELLI DI NEGRO LAURA; ;OSTEGNO ALLE ATTIVITA ECONOMICHE DANNEGGIATE DALL EMERGENZA SANITARIA DA COVID-19 - EROGAZIONE CONTRIBUTO.;15-03-2021;630;0;471;1;Spese correnti;4;Trasferimenti correnti;3;Trasferimenti correnti a Imprese;99;Trasferimenti correnti a altre imprese;999;Trasferimenti correnti a altre imprese;15-03-2021;
315;23;0;"1.000,00";"32.000,00";PARRUCCHIERE MUNAROLO MAURO; ;OSTEGNO ALLE ATTIVITA ECONOMICHE DANNEGGIATE DALL EMERGENZA SANITARIA DA COVID-19 - EROGAZIONE CONTRIBUTO.;15-03-2021;630;0;471;1;Spese correnti;4;Trasferimenti correnti;3;Trasferimenti correnti a Imprese;99;Trasferimenti correnti a altre imprese;999;Trasferimenti correnti a altre imprese;15-03-2021;
315;24;0;"1.000,00";"32.000,00";PUNKY REAGGE PUB DI NEGRELLO PAOLO & C.SNC; ;OSTEGNO ALLE ATTIVITA ECONOMICHE DANNEGGIATE DALL EMERGENZA SANITARIA DA COVID-19 - EROGAZIONE CONTRIBUTO.;15-03-2021;630;0;471;1;Spese correnti;4;Trasferimenti correnti;3;Trasferimenti correnti a Imprese;99;Trasferimenti correnti a altre imprese;999;Trasferimenti correnti a altre imprese;15-03-2021;
315;25;0;"1.000,00";"32.000,00";QEMALI JULIANA; ;OSTEGNO ALLE ATTIVITA ECONOMICHE DANNEGGIATE DALL EMERGENZA SANITARIA DA COVID-19 - EROGAZIONE CONTRIBUTO.;15-03-2021;630;0;471;1;Spese correnti;4;Trasferimenti correnti;3;Trasferimenti correnti a Imprese;99;Trasferimenti correnti a altre imprese;999;Trasferimenti correnti a altre imprese;15-03-2021;
315;26;0;"1.000,00";"32.000,00";RISTORANTE DA SANDRO DI MARIN NATALIA; ;OSTEGNO ALLE ATTIVITA ECONOMICHE DANNEGGIATE DALL EMERGENZA SANITARIA DA COVID-19 - EROGAZIONE CONTRIBUTO.;15-03-2021;630;0;471;1;Spese correnti;4;Trasferimenti correnti;3;Trasferimenti correnti a Imprese;99;Trasferimenti correnti a altre imprese;999;Trasferimenti correnti a altre imprese;15-03-2021;
315;27;0;"1.000,00";"32.000,00";RISTORANTE MARTINI DI MARTINI GIULIANO; ;OSTEGNO ALLE ATTIVITA ECONOMICHE DANNEGGIATE DALL EMERGENZA SANITARIA DA COVID-19 - EROGAZIONE CONTRIBUTO.;15-03-2021;630;0;471;1;Spese correnti;4;Trasferimenti correnti;3;Trasferimenti correnti a Imprese;99;Trasferimenti correnti a altre imprese;999;Trasferimenti correnti a altre imprese;15-03-2021;
315;28;0;"1.000,00";"32.000,00";SALONE PER UOMO DI ASTERO FRANCESCO; ;OSTEGNO ALLE ATTIVITA ECONOMICHE DANNEGGIATE DALL EMERGENZA SANITARIA DA COVID-19 - EROGAZIONE CONTRIBUTO.;15-03-2021;630;0;471;1;Spese correnti;4;Trasferimenti correnti;3;Trasferimenti correnti a Imprese;99;Trasferimenti correnti a altre imprese;999;Trasferimenti correnti a altre imprese;15-03-2021;
315;29;0;"1.000,00";"32.000,00";SCUOLA DI DANZA ELENA E LUCIA PEGORARI; ;OSTEGNO ALLE ATTIVITA ECONOMICHE DANNEGGIATE DALL EMERGENZA SANITARIA DA COVID-19 - EROGAZIONE CONTRIBUTO.;15-03-2021;630;0;471;1;Spese correnti;4;Trasferimenti correnti;3;Trasferimenti correnti a Imprese;99;Trasferimenti correnti a altre imprese;999;Trasferimenti correnti a altre imprese;15-03-2021;
315;30;0;"1.000,00";"32.000,00";STRAGLIOTTO RENATO; ;OSTEGNO ALLE ATTIVITA ECONOMICHE DANNEGGIATE DALL EMERGENZA SANITARIA DA COVID-19 - EROGAZIONE CONTRIBUTO.;15-03-2021;630;0;471;1;Spese correnti;4;Trasferimenti correnti;3;Trasferimenti correnti a Imprese;99;Trasferimenti correnti a altre imprese;999;Trasferimenti correnti a altre imprese;15-03-2021;
315;31;0;"1.000,00";"32.000,00";SUN BEAUTY CENTER DI MARGHERITA PELLIZZER; ;OSTEGNO ALLE ATTIVITA ECONOMICHE DANNEGGIATE DALL EMERGENZA SANITARIA DA COVID-19 - EROGAZIONE CONTRIBUTO.;15-03-2021;630;0;471;1;Spese correnti;4;Trasferimenti correnti;3;Trasferimenti correnti a Imprese;99;Trasferimenti correnti a altre imprese;999;Trasferimenti correnti a altre imprese;15-03-2021;
315;32;0;"1.000,00";"32.000,00";ZANZIBAR SRL; ;OSTEGNO ALLE ATTIVITA ECONOMICHE DANNEGGIATE DALL EMERGENZA SANITARIA DA COVID-19 - EROGAZIONE CONTRIBUTO.;15-03-2021;630;0;471;1;Spese correnti;4;Trasferimenti correnti;3;Trasferimenti correnti a Imprese;99;Trasferimenti correnti a altre imprese;999;Trasferimenti correnti a altre imprese;15-03-2021;
316;1;0;"1.000,00";"1.000,00";HABITAT SAS DI RICCARDO MORETTI & C.; ;SOSTEGNO ALLE ATTIVITA ECONOMICHE DANNEGGIATE DALLEMERGENZA SANITARIA DA COVID-19 - EROGAZIONE CONTRIBUTO.;16-03-2021;630;0;471;1;Spese correnti;4;Trasferimenti correnti;3;Trasferimenti correnti a Imprese;99;Trasferimenti correnti a altre imprese;999;Trasferimenti correnti a altre imprese;16-03-2021;
317;1;0;"9.206,61";"9.206,61";PLT PUREGREEN;7134285639;SALDO Fatt.n. 20210040000914  del 12/02/2021 FORNITURA ENERGIA ELETTRICA - GENNAIO 2021;17-03-2021;600;0;216;1;Spese correnti;3;Acquisto di beni e servizi;2;Acquisto di servizi;5;Utenze e canoni;4;Energia elettrica;17-03-2021;
319;1;0;"9.032,01";"9.032,01";NOMINATIVI DIVERSI; ;LIQUIDAZIONE CONTRIBUTO REGIONALE "BUONO LIBRI E CONTENUTI DIDATTICI ALTERNATIVI". ANNO SCOLASTICO FORMATIVO 2020/2021.;19-03-2021;558;0;68;1;Spese correnti;4;Trasferimenti correnti;2;Trasferimenti correnti a Famiglie;2;Interventi assistenziali;999;Altri assegni e sussidi assistenziali;19-03-2021;
327;1;0;"5,88";"5,88";PERSONALE DIPENDENTE - SEDE; ;STIPENDI MESE DI: MARZO 21 - RIMBORSO SPESE.;19-03-2021;58;0;55;1;Spese correnti;3;Acquisto di beni e servizi;2;Acquisto di servizi;2;"Organizzazione eventi, pubblicita` e servizi per trasferta";1;Rimborso per viaggio e trasloco;19-03-2021;
356;1;0;"5.961,21";"5.961,21";AMMINISTRATORI COMUNALI; ;STIPENDI MESE DI: MARZO 21;22-03-2021;2;0;1;1;Spese correnti;3;Acquisto di beni e servizi;2;Acquisto di servizi;1;Organi e incarichi istituzionali dell'amministrazione;1;Organi istituzionali dell'amministrazione - Indennità;22-03-2021;
359;1;0;"530,70";"530,70";ELA SISTEMI ELETTRONICI S.R.L.;Z062E0BAA0;Fatt.n. 6/PA del 27/02/2021 SISTEMI INFORMATICI;23-03-2021;313;1;330;1;Spese correnti;3;Acquisto di beni e servizi;2;Acquisto di servizi;9;Manutenzione ordinaria e riparazioni;4;Manutenzione ordinaria e riparazioni di impianti e macchinari;23-03-2021;
360;1;0;"981,61";"981,61";ALBERTON FERRAMENTA E CASALINGHI SNC DI ALBERTON P.& C.;ZF92D64AA7;Fatt.n. 1/PA del 04/03/2021 MATERIALE DI FERRAMENTA;23-03-2021;589;0;513;1;Spese correnti;3;Acquisto di beni e servizi;1;Acquisto di beni;2;Altri beni di consumo;999;Altri beni e materiali di consumo n.a.c.;23-03-2021;
361;1;0;"1.651,10";"1.651,10";SERVIZI TREVISO SRL;ZA930BE066;Fatt.n. 2021/39/57 del 01/03/2021 ADEMPIMENTI FISCALI PER UFF. SOCIALE - 2 SEMESTRE 2020;23-03-2021;559;0;42;1;Spese correnti;3;Acquisto di beni e servizi;2;Acquisto di servizi;99;Altri servizi;999;Altri servizi diversi n.a.c.;23-03-2021;
362;1;0;"610,00";"610,00";ASSOCIAZIONE COMUNI MARCA TREVIGIANA; ;QUOTA ASSOCIATIVA ALLASSOCIAZIONE COMUNI DELLA MARCA TREVIGIANA - ANNO 2021.;23-03-2021;51;1;74;1;Spese correnti;3;Acquisto di beni e servizi;2;Acquisto di servizi;99;Altri servizi;3;Quote di associazioni;23-03-2021;
363;1;0;"507,09";"507,09";ANCI VENETO; ;QUOTA ASSOCIATIVA AD ANCI VENETO - ANNO 2021.;23-03-2021;51;1;75;1;Spese correnti;3;Acquisto di beni e servizi;2;Acquisto di servizi;99;Altri servizi;3;Quote di associazioni;23-03-2021;
364;1;0;"192,10";"192,10";LA IDROFERRAMENTA SRL;Z3D2D0846B;Fatt.n. 17/PA del 27/02/2021 FORNITURA MATERIALE DA FERRAMENTA;23-03-2021;591;0;161;1;Spese correnti;3;Acquisto di beni e servizi;1;Acquisto di beni;2;Altri beni di consumo;999;Altri beni e materiali di consumo n.a.c.;23-03-2021;
365;1;0;"61,99";"61,99";KUWAIT PETROLEUM ITALIA S.P.A.;Z4E197F01F;Fatt.n. PJ03640470 del 28/02/2021 CARBURANTE AUTO VIGILI - FEBBRAIO 2021;23-03-2021;179;0;109;1;Spese correnti;3;Acquisto di beni e servizi;1;Acquisto di beni;2;Altri beni di consumo;2;"Carburanti, combustibili e lubrificanti";23-03-2021;
366;1;0;"79,50";"79,50";KUWAIT PETROLEUM ITALIA S.P.A.;Z4E197F01F;Fatt.n. PJ03640469 del 28/02/2021 CARBURANTE AUTO UFF. SOCIALE - FEBBRAIO 2021;23-03-2021;571;0;110;1;Spese correnti;3;Acquisto di beni e servizi;1;Acquisto di beni;2;Altri beni di consumo;2;"Carburanti, combustibili e lubrificanti";23-03-2021;
367;1;0;"63,33";"255,03";KUWAIT PETROLEUM ITALIA S.P.A.;Z4E197F01F;Fatt.n. PJ03640468 del 28/02/2021 CARBURANTE AUTO OPERAI - FEBBRAIO 2021;23-03-2021;590;0;111;1;Spese correnti;3;Acquisto di beni e servizi;1;Acquisto di beni;2;Altri beni di consumo;2;"Carburanti, combustibili e lubrificanti";23-03-2021;
367;2;0;"191,70";"255,03";KUWAIT PETROLEUM ITALIA S.P.A.;Z4E197F01F;Fatt.n. PJ03640467 del 28/02/2021 CARBURANTE AUTO PROT. CIVILE - FEBBRAIO 2021;23-03-2021;590;0;111;1;Spese correnti;3;Acquisto di beni e servizi;1;Acquisto di beni;2;Altri beni di consumo;2;"Carburanti, combustibili e lubrificanti";23-03-2021;
368;1;0;"-4.392,00";"4.392,00";HALLEY VENETO SRL;Z732FC84DF;Fatt.n. 1/210528 del 10/03/2021 NOTA DI CREDITO A TOTALE STORNO FATTURA N. 210144 DEL 19/01/2021 PER ERRATA DESCRIZIONE.;23-03-2021;39;2;425;1;Spese correnti;3;Acquisto di beni e servizi;2;Acquisto di servizi;19;Servizi informatici e di telecomunicazioni;1;Gestione e manutenzione applicazioni;23-03-2021;
368;2;0;"4.392,00";"4.392,00";HALLEY VENETO SRL;Z732FC84DF;Fatt.n. 1/210529 del 10/03/2021 EFFETTUATA ATTIVAZIONE PROGETTO SWITCH OFF PAGOPA ED ATTIVAZIONE SERVIZIO MYCALENDAR SVOLTI NELL'ANNO 2020.;23-03-2021;39;2;425;1;Spese correnti;3;Acquisto di beni e servizi;2;Acquisto di servizi;19;Servizi informatici e di telecomunicazioni;1;Gestione e manutenzione applicazioni;23-03-2021;
368;3;0;"4.392,00";"4.392,00";HALLEY VENETO SRL;Z732FC84DF;Fatt.n. 1/210144 del 19/01/2021 ATTIVAZIONE PROGETTO SWITCH OFF PAGO PA;23-03-2021;39;2;425;1;Spese correnti;3;Acquisto di beni e servizi;2;Acquisto di servizi;19;Servizi informatici e di telecomunicazioni;1;Gestione e manutenzione applicazioni;23-03-2021;
369;1;0;"145,30";"145,30";Farmacie Piu' SAS - Carinatese; ;Fatt.n. 6/2021/PA del 28/02/2021 ACQUISTO BENI PER EMERGENZA SANITARIA COVID;23-03-2021;563;0;468;1;Spese correnti;3;Acquisto di beni e servizi;1;Acquisto di beni;2;Altri beni di consumo;11;Generi alimentari;23-03-2021;
370;1;0;"35,29";"35,29";MAXI DI SRL; ;Fatt.n. D38521999000036 del 03/03/2021 ACQUISTO BENI PER EMERGENZA ALIMENTARE;23-03-2021;563;0;126;1;Spese correnti;3;Acquisto di beni e servizi;1;Acquisto di beni;2;Altri beni di consumo;11;Generi alimentari;23-03-2021;
371;1;0;"80,48";"80,48";SUPERMERCATO FACCHIN DI FACCHIN A. & S.a.S.; ;Fatt.n. FPA 30/20 del 31/12/2020 BENI ALIMENTARI;23-03-2021;563;0;464;1;Spese correnti;3;Acquisto di beni e servizi;1;Acquisto di beni;2;Altri beni di consumo;11;Generi alimentari;23-03-2021;
372;1;0;"1.781,82";"1.781,82";UNICOOPER SERVIZI S.C.R.L.;ZA530DF999;Fatt.n. 133 del 31/01/2021 SERVIZIO DI PULIZIA EDIFICI COMUNALI - GENNAIO 2021;23-03-2021;34;2;61;1;Spese correnti;3;Acquisto di beni e servizi;2;Acquisto di servizi;13;Servizi ausiliari per il funzionamento dell'ente;2;Servizi di pulizia e lavanderia;23-03-2021;
373;1;0;"210,00";"329,44";SUPERMERCATI META'; ;Fatt.n. FPA 5/21 del 28/02/2021 ACQUISTO BENI PER EMERGENZA COVID;23-03-2021;563;0;464;1;Spese correnti;3;Acquisto di beni e servizi;1;Acquisto di beni;2;Altri beni di consumo;11;Generi alimentari;23-03-2021;
373;2;0;"22,26";"329,44";SUPERMERCATI META'; ;Fatt.n. FPA 4/21 del 28/02/2021 ACQUISTO BENI PER EMERGENZA COVID;23-03-2021;563;0;464;1;Spese correnti;3;Acquisto di beni e servizi;1;Acquisto di beni;2;Altri beni di consumo;11;Generi alimentari;23-03-2021;
373;3;0;"97,18";"329,44";SUPERMERCATI META'; ;SALDO Fatt.n. FPA 1/21  del 31/01/2021 ACQUISTO BENI PER EMERGENZA COVID;23-03-2021;563;0;464;1;Spese correnti;3;Acquisto di beni e servizi;1;Acquisto di beni;2;Altri beni di consumo;11;Generi alimentari;23-03-2021;
374;1;0;"731,86";"731,86";NOIGROUP Coop. Soc. a R.L.;8551409DEF;Fatt.n. 96 del 28/02/2021 ATTIVITA' DI FEBBRAIO 2021;23-03-2021;302;1;28;1;Spese correnti;3;Acquisto di beni e servizi;2;Acquisto di servizi;16;Servizi amministrativi;999;Altre spese per servizi amministrativi;23-03-2021;
375;1;0;"5.353,77";"5.353,77";CASA DI RIPOSO 'AITA'; ;Fatt.n. 104/C del 04/03/2021 FORNITURA PASTI MENSA - FEBBRAIO 2021;23-03-2021;274;1;472;1;Spese correnti;3;Acquisto di beni e servizi;2;Acquisto di servizi;15;Contratti di servizio pubblico;6;Contratti di servizio per le mense scolastiche;23-03-2021;
376;1;0;"105,05";"105,05";IDEA GIARDINO SNC;ZEE2CD1B77;Fatt.n. 6 del 26/02/2021 MANUTENZIONE VERDE PUBBLICO;23-03-2021;40;2;137;1;Spese correnti;3;Acquisto di beni e servizi;1;Acquisto di beni;2;Altri beni di consumo;9;Beni per attività di rappresentanza;23-03-2021;
377;1;0;"12.410,72";"12.410,72";Mobilita' di Marca S.P.A.;7976331491;Fatt.n. 000084 del 04/03/2021 TRASPORTO SCOLASTICO - GENNAIO 2021;23-03-2021;275;1;376;1;Spese correnti;3;Acquisto di beni e servizi;2;Acquisto di servizi;15;Contratti di servizio pubblico;2;Contratti di servizio di trasporto scolastico;23-03-2021;
378;1;0;"12.410,72";"12.410,72";Mobilita' di Marca S.P.A.;7976331491;Fatt.n. 000085 del 04/03/2021 TRASPORTO SCOLASTICO - FEBBRAIO 2021;23-03-2021;275;1;376;1;Spese correnti;3;Acquisto di beni e servizi;2;Acquisto di servizi;15;Contratti di servizio pubblico;2;Contratti di servizio di trasporto scolastico;23-03-2021;
379;1;0;"240,00";"240,00";POSTE ITALIANE S.P.A. - AFFRANCATRICE POSTALE;Z03302BD5C;Fatt.n. 1021044230 del 04/03/2021 PRODOTTI POSTALI;23-03-2021;26;0;45;1;Spese correnti;3;Acquisto di beni e servizi;2;Acquisto di servizi;16;Servizi amministrativi;2;Spese postali;23-03-2021;
380;1;0;"3.399,00";"3.399,00";CASA DI RIPOSO 'AITA'; ;Fatt.n. 89/B del 03/03/2021 SERVIZIO DI A.D. - GENNAIO 2021;23-03-2021;562;1;240;1;Spese correnti;3;Acquisto di beni e servizi;2;Acquisto di servizi;15;Contratti di servizio pubblico;9;Contratti di servizio di assistenza sociale domiciliare;23-03-2021;
381;1;0;"2.040,00";"2.040,00";BERNO MARTINA; ;Fatt.n. 17/FE del 08/03/2021 ONORARI PER PRESTAZIONI UFFICIO STAMPA;23-03-2021;23;0;604;1;Spese correnti;3;Acquisto di beni e servizi;2;Acquisto di servizi;11;Prestazioni professionali e specialistiche;999;Altre prestazioni professionali e specialistiche n.a.c.;23-03-2021;
382;1;0;"3.769,80";"3.769,80";CASA DI RIPOSO 'AITA'; ;Fatt.n. 116/B del 10/03/2021 SERVIZIO DI A.D. - FEBBRAIO 2021;23-03-2021;562;1;240;1;Spese correnti;3;Acquisto di beni e servizi;2;Acquisto di servizi;15;Contratti di servizio pubblico;9;Contratti di servizio di assistenza sociale domiciliare;23-03-2021;
383;1;0;"1.524,00";"1.524,00";CASA DI RIPOSO 'AITA'; ;Fatt.n. 120/B del 11/03/2021 PRESTAZIONI SOCIALI  L.V. - FEBBRAIO 2021;23-03-2021;560;0;43;1;Spese correnti;3;Acquisto di beni e servizi;2;Acquisto di servizi;15;Contratti di servizio pubblico;8;Contratti di servizio di assistenza sociale residenziale e semiresidenziale;23-03-2021;
384;1;0;"102,82";"102,82";CONTO SERVIZIO DI TESORERIA; ;SPESE PER BANCO POSTA SERVIZIO DI TESORERIA PERIODO: SETTEMBRE/DICEMBRE 2020.;23-03-2021;45;0;52;1;Spese correnti;3;Acquisto di beni e servizi;2;Acquisto di servizi;16;Servizi amministrativi;2;Spese postali;23-03-2021;
385;1;0;"94,66";"94,66";CONTO SERVIZIO POLIZIA MUNICIPALE; ;SPESE PER BANCO POSTA SERVIZIO POLIZIA MUNICIPALE PERIODO: SETTEMBRE/DICEMBRE 2020.;23-03-2021;45;0;53;1;Spese correnti;3;Acquisto di beni e servizi;2;Acquisto di servizi;16;Servizi amministrativi;2;Spese postali;23-03-2021;
386;1;0;"1.000,00";"1.000,00";SALONE ISIDE DI PAROLIN FRANCESCA; ;SOSTEGNO ALLE ATTIVITA ECONOMICHE DANNEGGIATE DALL EMERGENZA SANITARIA DA COVID-19 - EROGAZIONE CONTRIBUTO.;26-03-2021;630;0;471;1;Spese correnti;4;Trasferimenti correnti;3;Trasferimenti correnti a Imprese;99;Trasferimenti correnti a altre imprese;999;Trasferimenti correnti a altre imprese;26-03-2021;
